Workbook

Sheet السري
E1: الصف الأول الاعدادي | J1: الصف الأول الاعدادي | N1: الصف الأول الاعدادي | R1: سري الترم الأول | W1: سري الترم الأول
A2: م | B2: الاسم | C2: رقم الجلوس | D2: سري ترم أول | E2: م | F2: الاسم | G2: جلوس | H2: سري | I2: م | J2: الاسم | K2: جلوس | L2: سري | M2: م | N2: الاسم | O2: جلوس | P2: سري | W2: سري الترم الثاني
A3: =IF(B3="","",MAX($A$2:A2)+1) ->  | E3: =IF(F3="","",MAX($E$2:E2)+53) ->  | I3: =IF(J3="","",MAX($I$2:I2)+103) ->  | K3: 254 | L3: 70 | M3: =IF(N3="","",MAX($M$2:M2)+154) -> 
A4: =IF(B4="","",MAX($A$2:A3)+1) ->  | E4: =IF(F4="","",MAX($E$2:E3)+1) ->  | I4: =IF(J4="","",MAX($I$2:I3)+1) ->  | K4: 255 | L4: 71 | M4: =IF(N4="","",MAX($M$2:M3)+1) -> 
A5: =IF(B5="","",MAX($A$2:A4)+1) ->  | E5: =IF(F5="","",MAX($E$2:E4)+1) ->  | I5: =IF(J5="","",MAX($I$2:I4)+1) ->  | K5: 256 | L5: 72 | M5: =IF(N5="","",MAX($M$2:M4)+1) -> 
A6: =IF(B6="","",MAX($A$2:A5)+1) ->  | E6: =IF(F6="","",MAX($E$2:E5)+1) ->  | I6: =IF(J6="","",MAX($I$2:I5)+1) ->  | K6: 257 | L6: 73 | M6: =IF(N6="","",MAX($M$2:M5)+1) -> 
A7: =IF(B7="","",MAX($A$2:A6)+1) ->  | E7: =IF(F7="","",MAX($E$2:E6)+1) ->  | I7: =IF(J7="","",MAX($I$2:I6)+1) ->  | K7: 258 | L7: 74 | M7: =IF(N7="","",MAX($M$2:M6)+1) -> 
A8: =IF(B8="","",MAX($A$2:A7)+1) ->  | E8: =IF(F8="","",MAX($E$2:E7)+1) ->  | I8: =IF(J8="","",MAX($I$2:I7)+1) ->  | K8: 259 | L8: 75 | M8: =IF(N8="","",MAX($M$2:M7)+1) -> 
A9: =IF(B9="","",MAX($A$2:A8)+1) ->  | E9: =IF(F9="","",MAX($E$2:E8)+1) ->  | I9: =IF(J9="","",MAX($I$2:I8)+1) ->  | K9: 260 | L9: 76 | M9: =IF(N9="","",MAX($M$2:M8)+1) -> 
A10: =IF(B10="","",MAX($A$2:A9)+1) ->  | E10: =IF(F10="","",MAX($E$2:E9)+1) ->  | I10: =IF(J10="","",MAX($I$2:I9)+1) ->  | K10: 261 | L10: 77 | M10: =IF(N10="","",MAX($M$2:M9)+1) -> 
A11: =IF(B11="","",MAX($A$2:A10)+1) ->  | E11: =IF(F11="","",MAX($E$2:E10)+1) ->  | I11: =IF(J11="","",MAX($I$2:I10)+1) ->  | K11: 262 | L11: 78 | M11: =IF(N11="","",MAX($M$2:M10)+1) -> 
A12: =IF(B12="","",MAX($A$2:A11)+1) ->  | E12: =IF(F12="","",MAX($E$2:E11)+1) ->  | I12: =IF(J12="","",MAX($I$2:I11)+1) ->  | K12: 263 | L12: 79 | M12: =IF(N12="","",MAX($M$2:M11)+1) -> 
A13: =IF(B13="","",MAX($A$2:A12)+1) ->  | E13: =IF(F13="","",MAX($E$2:E12)+1) ->  | I13: =IF(J13="","",MAX($I$2:I12)+1) ->  | K13: 264 | L13: 80 | M13: =IF(N13="","",MAX($M$2:M12)+1) -> 
A14: =IF(B14="","",MAX($A$2:A13)+1) ->  | E14: =IF(F14="","",MAX($E$2:E13)+1) ->  | I14: =IF(J14="","",MAX($I$2:I13)+1) ->  | K14: 265 | L14: 81 | M14: =IF(N14="","",MAX($M$2:M13)+1) -> 
A15: =IF(B15="","",MAX($A$2:A14)+1) ->  | E15: =IF(F15="","",MAX($E$2:E14)+1) ->  | I15: =IF(J15="","",MAX($I$2:I14)+1) ->  | K15: 266 | L15: 82 | M15: =IF(N15="","",MAX($M$2:M14)+1) -> 
A16: =IF(B16="","",MAX($A$2:A15)+1) ->  | E16: =IF(F16="","",MAX($E$2:E15)+1) ->  | I16: =IF(J16="","",MAX($I$2:I15)+1) ->  | K16: 267 | L16: 83 | M16: =IF(N16="","",MAX($M$2:M15)+1) -> 
A17: =IF(B17="","",MAX($A$2:A16)+1) ->  | E17: =IF(F17="","",MAX($E$2:E16)+1) ->  | I17: =IF(J17="","",MAX($I$2:I16)+1) ->  | K17: 268 | L17: 84 | M17: =IF(N17="","",MAX($M$2:M16)+1) -> 
A18: =IF(B18="","",MAX($A$2:A17)+1) ->  | E18: =IF(F18="","",MAX($E$2:E17)+1) ->  | I18: =IF(J18="","",MAX($I$2:I17)+1) ->  | K18: 269 | L18: 85 | M18: =IF(N18="","",MAX($M$2:M17)+1) -> 
A19: =IF(B19="","",MAX($A$2:A18)+1) ->  | E19: =IF(F19="","",MAX($E$2:E18)+1) ->  | I19: =IF(J19="","",MAX($I$2:I18)+1) ->  | M19: =IF(N19="","",MAX($M$2:M18)+1) -> 
A20: =IF(B20="","",MAX($A$2:A19)+1) ->  | E20: =IF(F20="","",MAX($E$2:E19)+1) ->  | I20: =IF(J20="","",MAX($I$2:I19)+1) ->  | M20: =IF(N20="","",MAX($M$2:M19)+1) -> 
A21: =IF(B21="","",MAX($A$2:A20)+1) ->  | E21: =IF(F21="","",MAX($E$2:E20)+1) ->  | I21: =IF(J21="","",MAX($I$2:I20)+1) ->  | M21: =IF(N21="","",MAX($M$2:M20)+1) -> 
A22: =IF(B22="","",MAX($A$2:A21)+1) ->  | E22: =IF(F22="","",MAX($E$2:E21)+1) ->  | I22: =IF(J22="","",MAX($I$2:I21)+1) ->  | M22: =IF(N22="","",MAX($M$2:M21)+1) -> 
A23: =IF(B23="","",MAX($A$2:A22)+1) ->  | E23: =IF(F23="","",MAX($E$2:E22)+1) ->  | I23: =IF(J23="","",MAX($I$2:I22)+1) ->  | M23: =IF(N23="","",MAX($M$2:M22)+1) -> 
A24: =IF(B24="","",MAX($A$2:A23)+1) ->  | E24: =IF(F24="","",MAX($E$2:E23)+1) ->  | I24: =IF(J24="","",MAX($I$2:I23)+1) ->  | M24: =IF(N24="","",MAX($M$2:M23)+1) -> 
A25: =IF(B25="","",MAX($A$2:A24)+1) ->  | E25: =IF(F25="","",MAX($E$2:E24)+1) ->  | I25: =IF(J25="","",MAX($I$2:I24)+1) ->  | M25: =IF(N25="","",MAX($M$2:M24)+1) -> 
A26: =IF(B26="","",MAX($A$2:A25)+1) ->  | E26: =IF(F26="","",MAX($E$2:E25)+1) ->  | I26: =IF(J26="","",MAX($I$2:I25)+1) ->  | M26: =IF(N26="","",MAX($M$2:M25)+1) -> 
A27: =IF(B27="","",MAX($A$2:A26)+1) ->  | E27: =IF(F27="","",MAX($E$2:E26)+1) ->  | I27: =IF(J27="","",MAX($I$2:I26)+1) ->  | M27: =IF(N27="","",MAX($M$2:M26)+1) -> 
A28: =IF(B28="","",MAX($A$2:A27)+1) ->  | E28: =IF(F28="","",MAX($E$2:E27)+1) ->  | I28: =IF(J28="","",MAX($I$2:I27)+1) ->  | M28: =IF(N28="","",MAX($M$2:M27)+1) -> 
A29: =IF(B29="","",MAX($A$2:A28)+1) ->  | E29: =IF(F29="","",MAX($E$2:E28)+1) ->  | I29: =IF(J29="","",MAX($I$2:I28)+1) ->  | M29: =IF(N29="","",MAX($M$2:M28)+1) -> 
A30: =IF(B30="","",MAX($A$2:A29)+1) ->  | E30: =IF(F30="","",MAX($E$2:E29)+1) ->  | I30: =IF(J30="","",MAX($I$2:I29)+1) ->  | M30: =IF(N30="","",MAX($M$2:M29)+1) -> 
A31: =IF(B31="","",MAX($A$2:A30)+1) ->  | E31: =IF(F31="","",MAX($E$2:E30)+1) ->  | I31: =IF(J31="","",MAX($I$2:I30)+1) ->  | M31: =IF(N31="","",MAX($M$2:M30)+1) -> 
A32: =IF(B32="","",MAX($A$2:A31)+1) ->  | E32: =IF(F32="","",MAX($E$2:E31)+1) ->  | I32: =IF(J32="","",MAX($I$2:I31)+1) ->  | M32: =IF(N32="","",MAX($M$2:M31)+1) -> 
A33: =IF(B33="","",MAX($A$2:A32)+1) ->  | E33: =IF(F33="","",MAX($E$2:E32)+1) ->  | I33: =IF(J33="","",MAX($I$2:I32)+1) ->  | M33: =IF(N33="","",MAX($M$2:M32)+1) -> 
A34: =IF(B34="","",MAX($A$2:A33)+1) ->  | E34: =IF(F34="","",MAX($E$2:E33)+1) ->  | I34: =IF(J34="","",MAX($I$2:I33)+1) ->  | M34: =IF(N34="","",MAX($M$2:M33)+1) -> 
A35: =IF(B35="","",MAX($A$2:A34)+1) ->  | E35: =IF(F35="","",MAX($E$2:E34)+1) ->  | I35: =IF(J35="","",MAX($I$2:I34)+1) ->  | M35: =IF(N35="","",MAX($M$2:M34)+1) -> 
A36: =IF(B36="","",MAX($A$2:A35)+1) ->  | E36: =IF(F36="","",MAX($E$2:E35)+1) ->  | I36: =IF(J36="","",MAX($I$2:I35)+1) ->  | M36: =IF(N36="","",MAX($M$2:M35)+1) -> 
A37: =IF(B37="","",MAX($A$2:A36)+1) ->  | E37: =IF(F37="","",MAX($E$2:E36)+1) ->  | I37: =IF(J37="","",MAX($I$2:I36)+1) ->  | M37: =IF(N37="","",MAX($M$2:M36)+1) -> 
A38: =IF(B38="","",MAX($A$2:A37)+1) ->  | E38: =IF(F38="","",MAX($E$2:E37)+1) ->  | I38: =IF(J38="","",MAX($I$2:I37)+1) ->  | M38: =IF(N38="","",MAX($M$2:M37)+1) -> 
A39: =IF(B39="","",MAX($A$2:A38)+1) ->  | E39: =IF(F39="","",MAX($E$2:E38)+1) ->  | I39: =IF(J39="","",MAX($I$2:I38)+1) ->  | M39: =IF(N39="","",MAX($M$2:M38)+1) -> 
A40: =IF(B40="","",MAX($A$2:A39)+1) ->  | E40: =IF(F40="","",MAX($E$2:E39)+1) ->  | I40: =IF(J40="","",MAX($I$2:I39)+1) ->  | M40: =IF(N40="","",MAX($M$2:M39)+1) -> 
A41: =IF(B41="","",MAX($A$2:A40)+1) ->  | E41: =IF(F41="","",MAX($E$2:E40)+1) ->  | I41: =IF(J41="","",MAX($I$2:I40)+1) ->  | M41: =IF(N41="","",MAX($M$2:M40)+1) -> 
A42: =IF(B42="","",MAX($A$2:A41)+1) ->  | E42: =IF(F42="","",MAX($E$2:E41)+1) ->  | I42: =IF(J42="","",MAX($I$2:I41)+1) ->  | M42: =IF(N42="","",MAX($M$2:M41)+1) -> 
A43: =IF(B43="","",MAX($A$2:A42)+1) ->  | E43: =IF(F43="","",MAX($E$2:E42)+1) ->  | I43: =IF(J43="","",MAX($I$2:I42)+1) ->  | M43: =IF(N43="","",MAX($M$2:M42)+1) -> 
A44: =IF(B44="","",MAX($A$2:A43)+1) ->  | E44: =IF(F44="","",MAX($E$2:E43)+1) ->  | I44: =IF(J44="","",MAX($I$2:I43)+1) ->  | M44: =IF(N44="","",MAX($M$2:M43)+1) -> 
A45: =IF(B45="","",MAX($A$2:A44)+1) ->  | E45: =IF(F45="","",MAX($E$2:E44)+1) ->  | I45: =IF(J45="","",MAX($I$2:I44)+1) ->  | M45: =IF(N45="","",MAX($M$2:M44)+1) -> 
A46: =IF(B46="","",MAX($A$2:A45)+1) ->  | E46: =IF(F46="","",MAX($E$2:E45)+1) ->  | I46: =IF(J46="","",MAX($I$2:I45)+1) ->  | M46: =IF(N46="","",MAX($M$2:M45)+1) -> 
A47: =IF(B47="","",MAX($A$2:A46)+1) ->  | E47: =IF(F47="","",MAX($E$2:E46)+1) ->  | I47: =IF(J47="","",MAX($I$2:I46)+1) ->  | M47: =IF(N47="","",MAX($M$2:M46)+1) -> 
A48: =IF(B48="","",MAX($A$2:A47)+1) ->  | E48: =IF(F48="","",MAX($E$2:E47)+1) ->  | I48: =IF(J48="","",MAX($I$2:I47)+1) ->  | M48: =IF(N48="","",MAX($M$2:M47)+1) -> 
A49: =IF(B49="","",MAX($A$2:A48)+1) ->  | E49: =IF(F49="","",MAX($E$2:E48)+1) ->  | I49: =IF(J49="","",MAX($I$2:I48)+1) ->  | M49: =IF(N49="","",MAX($M$2:M48)+1) -> 
A50: =IF(B50="","",MAX($A$2:A49)+1) ->  | E50: =IF(F50="","",MAX($E$2:E49)+1) ->  | I50: =IF(J50="","",MAX($I$2:I49)+1) ->  | M50: =IF(N50="","",MAX($M$2:M49)+1) -> 
A51: =IF(B51="","",MAX($A$2:A50)+1) ->  | E51: =IF(F51="","",MAX($E$2:E50)+1) ->  | I51: =IF(J51="","",MAX($I$2:I50)+1) ->  | M51: =IF(N51="","",MAX($M$2:M50)+1) -> 
A52: =IF(B52="","",MAX($A$2:A51)+1) ->  | E52: =IF(F52="","",MAX($E$2:E51)+1) ->  | I52: =IF(J52="","",MAX($I$2:I51)+1) ->  | M52: =IF(N52="","",MAX($M$2:M51)+1) -> 
A53: =IF(B53="","",MAX($A$2:A52)+1) ->  | E53: =IF(F53="","",MAX($E$2:E52)+1) ->  | I53: =IF(J53="","",MAX($I$2:I52)+1) ->  | M53: =IF(N53="","",MAX($M$2:M52)+1) -> 
B54: الصف الثاني الاعدادي | E54: الصف الثاني الاعدادي | J54: الصف الثاني الاعدادي | N54: الصف الثاني الاعدادي
A55: م | B55: فهد علي أحمد بطيخ | C55: 153 | D55: 138 | E55: م | F55: الاسم | G55: ج | H55: سري | I55: م | J55: الاسم | K55: ج | L55: سري | M55: م | N55: الاسم | O55: ج | P55: سري
A56: =IF(B56="","",MAX($A$55:A55)+1) -> 1 | B56: كريم عابدين عبدالنظير عابدين | C56: 154 | D56: 139 | E56: =IF(F56="","",MAX($E$55:E55)+52) -> 52 | F56: عماد عاطف عبدالعليم عوض | G56: 452 | H56: 314 | I56: =IF(J56="","",MAX($I$55:I55)+103) -> 103 | J56: حنان فراج عبدالكريم على | K56: 503 | L56: 180 | M56: =IF(N56="","",MAX($M$55:M55)+154) -> 154 | N56: منار رفاعى على محمود | O56: 554 | P56: 231
A57: =IF(B57="","",MAX($A$55:A56)+1) -> 2 | B57: كريم محمدعصمت مهدى السيد | C57: 155 | D57: 140 | E57: =IF(F57="","",MAX($E$55:E56)+1) -> 53 | F57: عماد يونس الصغير أحمد | G57: 453 | H57: 315 | I57: =IF(J57="","",MAX($I$55:I56)+1) -> 104 | J57: خلود أشرف السيد عوض | K57: 504 | L57: 181 | M57: =IF(N57="","",MAX($M$55:M56)+1) -> 155 | N57: منار محمد طاهر بهلول | O57: 555 | P57: 232
A58: =IF(B58="","",MAX($A$55:A57)+1) -> 3 | B58: كريم محمود زكي عبدالحميد | C58: 156 | D58: 141 | E58: =IF(F58="","",MAX($E$55:E57)+1) -> 54 | F58: عمر السيد محمد السيد | G58: 454 | H58: 316 | I58: =IF(J58="","",MAX($I$55:I57)+1) -> 105 | J58: داليا سالم عبدالعليم محمد | K58: 505 | L58: 182 | M58: =IF(N58="","",MAX($M$55:M57)+1) -> 156 | N58: منة الله عمران جبريل محمد | O58: 556 | P58: 233
A59: =IF(B59="","",MAX($A$55:A58)+1) -> 4 | B59: كيلاني إبراهيم كيلاني محمد | C59: 157 | D59: 142 | E59: =IF(F59="","",MAX($E$55:E58)+1) -> 55 | F59: عمر أحمد كليب على | G59: 455 | H59: 317 | I59: =IF(J59="","",MAX($I$55:I58)+1) -> 106 | J59: داليا هلال عبدالحميد احمد | K59: 506 | L59: 183 | M59: =IF(N59="","",MAX($M$55:M58)+1) -> 157 | N59: منة الله عوض محمود زيدان | O59: 557 | P59: 234
A60: =IF(B60="","",MAX($A$55:A59)+1) -> 5 | B60: محمد ابوالعلا محمد عبداللاه | C60: 158 | D60: 143 | E60: =IF(F60="","",MAX($E$55:E59)+1) -> 56 | F60: فادى يسرى بخيت جرجس | G60: 456 | H60: 318 | I60: =IF(J60="","",MAX($I$55:I59)+1) -> 107 | J60: دعاء الوهجانى احمد عبدالمجيد | K60: 507 | L60: 184 | M60: =IF(N60="","",MAX($M$55:M59)+1) -> 158 | N60: منه حماده على صادق | O60: 558 | P60: 235
A61: =IF(B61="","",MAX($A$55:A60)+1) -> 6 | B61: محمد أحمد محمود محمد | C61: 159 | D61: 144 | E61: =IF(F61="","",MAX($E$55:E60)+1) -> 57 | F61: فريد حسن عبدالظاهر عبدالنبى | G61: 457 | H61: 319 | I61: =IF(J61="","",MAX($I$55:I60)+1) -> 108 | J61: دعاء ناجح حشمت احمد | K61: 508 | L61: 185 | M61: =IF(N61="","",MAX($M$55:M60)+1) -> 159 | N61: منى عزالعرب كليب صادق | O61: 559 | P61: 236
A62: =IF(B62="","",MAX($A$55:A61)+1) -> 7 | B62: محمد رمضان عبدالحميد أحمد | C62: 160 | D62: 145 | E62: =IF(F62="","",MAX($E$55:E61)+1) -> 58 | F62: فوزى عثمان فوزى عثمان | G62: 458 | H62: 320 | I62: =IF(J62="","",MAX($I$55:I61)+1) -> 109 | J62: دنيا الصدام كليب على | K62: 509 | L62: 186 | M62: =IF(N62="","",MAX($M$55:M61)+1) -> 160 | N62: ناردين ماهر عبدالله جبرائيل | O62: 560 | P62: 237
A63: =IF(B63="","",MAX($A$55:A62)+1) -> 8 | B63: محمد عبدالناصر محمد ثابت | C63: 161 | D63: 146 | E63: =IF(F63="","",MAX($E$55:E62)+1) -> 59 | F63: كريم ابراهيم عبداللطيف رضا | G63: 459 | H63: 321 | I63: =IF(J63="","",MAX($I$55:I62)+1) -> 110 | J63: دنيا حسني فهلي محمد | K63: 510 | L63: 187 | M63: =IF(N63="","",MAX($M$55:M62)+1) -> 161 | N63: نانسى خلف على صادق | O63: 561 | P63: 238
A64: =IF(B64="","",MAX($A$55:A63)+1) -> 9 | B64: محمد عثمان فوزي عثمان | C64: 162 | D64: 147 | E64: =IF(F64="","",MAX($E$55:E63)+1) -> 60 | F64: كريم أحمد إسماعيل أحمد | G64: 460 | H64: 322 | I64: =IF(J64="","",MAX($I$55:I63)+1) -> 111 | J64: دنيا حماده محمود احمد | K64: 511 | L64: 188 | M64: =IF(N64="","",MAX($M$55:M63)+1) -> 162 | N64: نانسى فتحى عابدين عثمان | O64: 562 | P64: 239
A65: =IF(B65="","",MAX($A$55:A64)+1) -> 10 | B65: محمد عدلي إبراهيم محمود | C65: 163 | D65: 148 | E65: =IF(F65="","",MAX($E$55:E64)+1) -> 61 | F65: كريم خيرى فاضل رضوان | G65: 461 | H65: 323 | I65: =IF(J65="","",MAX($I$55:I64)+1) -> 112 | J65: دنيا محمود قنعاوى مدنى | K65: 512 | L65: 189 | M65: =IF(N65="","",MAX($M$55:M64)+1) -> 163 | N65: نجلاء مشوادي أحمد ابراهيم | O65: 563 | P65: 240
A66: =IF(B66="","",MAX($A$55:A65)+1) -> 11 | B66: محمد علي محمد شاكر | C66: 164 | D66: 149 | E66: =IF(F66="","",MAX($E$55:E65)+1) -> 62 | F66: كريم عاطف أحمد شاكر | G66: 462 | H66: 324 | I66: =IF(J66="","",MAX($I$55:I65)+1) -> 113 | J66: دينا بكرى النحاس عباس | K66: 513 | L66: 190 | M66: =IF(N66="","",MAX($M$55:M65)+1) -> 164 | N66: نجوى على عثمان على | O66: 564 | P66: 241
A67: =IF(B67="","",MAX($A$55:A66)+1) -> 12 | B67: محمد قصيدي حمدان برعي | C67: 165 | D67: 150 | E67: =IF(F67="","",MAX($E$55:E66)+1) -> 63 | F67: مجدى حمدى محمد حسن | G67: 463 | H67: 325 | I67: =IF(J67="","",MAX($I$55:I66)+1) -> 114 | J67: ذكرى عبدالله حشمت عبدلى | K67: 514 | L67: 191 | M67: =IF(N67="","",MAX($M$55:M66)+1) -> 165 | N67: ندى جابر احمد سليمان | O67: 565 | P67: 242
A68: =IF(B68="","",MAX($A$55:A67)+1) -> 13 | B68: محمد متولي عبداللاه صابر | C68: 166 | D68: 151 | E68: =IF(F68="","",MAX($E$55:E67)+1) -> 64 | F68: محمد اشرف عبدالحميد رضا | G68: 464 | H68: 326 | I68: =IF(J68="","",MAX($I$55:I67)+1) -> 115 | J68: رانيا ويصا سمير عزيز | K68: 515 | L68: 192 | M68: =IF(N68="","",MAX($M$55:M67)+1) -> 166 | N68: نرهان السيد كامل نورالدين | O68: 566 | P68: 243
A69: =IF(B69="","",MAX($A$55:A68)+1) -> 14 | B69: محمد محسن عبدالمبدي عبدالحميد | C69: 167 | D69: 152 | E69: =IF(F69="","",MAX($E$55:E68)+1) -> 65 | F69: محمد خلف مدنى حسب | G69: 465 | H69: 327 | I69: =IF(J69="","",MAX($I$55:I68)+1) -> 116 | J69: رحاب أحمد محمد محمود | K69: 516 | L69: 193 | M69: =IF(N69="","",MAX($M$55:M68)+1) -> 167 | N69: نسلين كمال حسونة رضوان | O69: 567 | P69: 244
A70: =IF(B70="","",MAX($A$55:A69)+1) -> 15 | B70: محمد محمود حسونه عبدالحميد | C70: 168 | D70: 153 | E70: =IF(F70="","",MAX($E$55:E69)+1) -> 66 | F70: محمد رفاعى ابوالمجد صادق | G70: 466 | H70: 328 | I70: =IF(J70="","",MAX($I$55:I69)+1) -> 117 | J70: رحاب بدوى محمد فرج | K70: 517 | L70: 194 | M70: =IF(N70="","",MAX($M$55:M69)+1) -> 168 | N70: نسمه محمد عبدالرووف رضا | O70: 568 | P70: 245
A71: =IF(B71="","",MAX($A$55:A70)+1) -> 16 | B71: محمد يونس الصغير أحمد | C71: 169 | D71: 154 | E71: =IF(F71="","",MAX($E$55:E70)+1) -> 67 | F71: محمد صبره عبدالرحيم عبداللطيف | G71: 467 | H71: 329 | I71: =IF(J71="","",MAX($I$55:I70)+1) -> 118 | J71: رحاب حسن حمدى عجور | K71: 518 | L71: 195 | M71: =IF(N71="","",MAX($M$55:M70)+1) -> 169 | N71: نورا أنور أسعد محمود | O71: 569 | P71: 246
A72: =IF(B72="","",MAX($A$55:A71)+1) -> 17 | B72: محمود ابو الحلقان العربى عبدلى | C72: 170 | D72: 155 | E72: =IF(F72="","",MAX($E$55:E71)+1) -> 68 | F72: محمد صديق عبدالعليم مصطفى | G72: 468 | H72: 330 | I72: =IF(J72="","",MAX($I$55:I71)+1) -> 119 | J72: رفاء محمد شاكر ابراهيم | K72: 519 | L72: 196 | M72: =IF(N72="","",MAX($M$55:M71)+1) -> 170 | N72: نورا محمد احمد علي | O72: 570 | P72: 247
A73: =IF(B73="","",MAX($A$55:A72)+1) -> 18 | B73: محمود رفعت حمدان عبدالعاطى | C73: 171 | D73: 156 | E73: =IF(F73="","",MAX($E$55:E72)+1) -> 69 | F73: محمد عاطف زهمول محمد | G73: 469 | H73: 331 | I73: =IF(J73="","",MAX($I$55:I72)+1) -> 120 | J73: رقيه بهجت ابراهيم عبدالحميد | K73: 520 | L73: 197 | M73: =IF(N73="","",MAX($M$55:M72)+1) -> 171 | N73: نوران فوزى محمد بهلول | O73: 571 | P73: 248
A74: =IF(B74="","",MAX($A$55:A73)+1) -> 19 | B74: محمود عبدالحميد صديق عبدالمجيد | C74: 172 | D74: 157 | E74: =IF(F74="","",MAX($E$55:E73)+1) -> 70 | F74: محمد عبدالعال محمود عبدالعال | G74: 470 | H74: 332 | I74: =IF(J74="","",MAX($I$55:I73)+1) -> 121 | J74: ساره محمد صابر عبداللطيف | K74: 521 | L74: 198 | M74: =IF(N74="","",MAX($M$55:M73)+1) -> 172 | N74: هايدى شحاته أحمد محمد | O74: 572 | P74: 249
A75: =IF(B75="","",MAX($A$55:A74)+1) -> 20 | B75: محمود عبدالراضي عبداللطيف علي | C75: 173 | D75: 158 | E75: =IF(F75="","",MAX($E$55:E74)+1) -> 71 | F75: محمد عبدالمجيد صديق عبدالمجيد | G75: 471 | H75: 333 | I75: =IF(J75="","",MAX($I$55:I74)+1) -> 122 | J75: ساميه محمود محمد محمد | K75: 522 | L75: 199 | M75: =IF(N75="","",MAX($M$55:M74)+1) -> 173 | N75: هايدى صبرى صدقى شنوده | O75: 573 | P75: 250
A76: =IF(B76="","",MAX($A$55:A75)+1) -> 21 | B76: محمود عربى حمدى عبدالعاطى | C76: 174 | D76: 159 | E76: =IF(F76="","",MAX($E$55:E75)+1) -> 72 | F76: محمد عبدالمؤمن عيد محمد | G76: 472 | H76: 334 | I76: =IF(J76="","",MAX($I$55:I75)+1) -> 123 | J76: سحرا على محمد طلب | K76: 523 | L76: 200 | M76: =IF(N76="","",MAX($M$55:M75)+1) -> 174 | N76: هايدى محمد شاكر ابراهيم | O76: 574 | P76: 251
A77: =IF(B77="","",MAX($A$55:A76)+1) -> 22 | B77: محمود علي عبداللاه صابر | C77: 175 | D77: 160 | E77: =IF(F77="","",MAX($E$55:E76)+1) -> 73 | F77: محمد عبدالنعيم عبدالمنعم احمد | G77: 473 | H77: 335 | I77: =IF(J77="","",MAX($I$55:I76)+1) -> 124 | J77: سمر بسيوني علي محمود | K77: 524 | L77: 201 | M77: =IF(N77="","",MAX($M$55:M76)+1) -> 175 | N77: هدى بسيونى الطيب عبدالعظيم | O77: 575 | P77: 252
A78: =IF(B78="","",MAX($A$55:A77)+1) -> 23 | B78: مروان امبابي ابوناصر عبداللاه | C78: 176 | D78: 161 | E78: =IF(F78="","",MAX($E$55:E77)+1) -> 74 | F78: محمد عطيه احمد صديق | G78: 474 | H78: 336 | I78: =IF(J78="","",MAX($I$55:I77)+1) -> 125 | J78: سهير عبدالخالق على محمد | K78: 525 | L78: 202 | M78: =IF(N78="","",MAX($M$55:M77)+1) -> 176 | N78: هدى رفعت فاروق ابراهيم | O78: 576 | P78: 253
A79: =IF(B79="","",MAX($A$55:A78)+1) -> 24 | B79: مروان رمضان محمد صادق | C79: 177 | D79: 162 | E79: =IF(F79="","",MAX($E$55:E78)+1) -> 75 | F79: محمد على كمال عبدالمجيد | G79: 475 | H79: 337 | I79: =IF(J79="","",MAX($I$55:I78)+1) -> 126 | J79: سهير محمد أبوالحمد أحمد | K79: 526 | L79: 203 | M79: =IF(N79="","",MAX($M$55:M78)+1) -> 177 | N79: هدى محمد علي ابراهيم | O79: 577 | P79: 254
A80: =IF(B80="","",MAX($A$55:A79)+1) -> 25 | B80: مصطفى عسران فوزي محمود | C80: 178 | D80: 163 | E80: =IF(F80="","",MAX($E$55:E79)+1) -> 76 | F80: محمد ناصر محمود زيدان | G80: 476 | H80: 338 | I80: =IF(J80="","",MAX($I$55:I79)+1) -> 127 | J80: شاهندا عاطف رشاد توفيق | K80: 527 | L80: 204 | M80: =IF(N80="","",MAX($M$55:M79)+1) -> 178 | N80: ورده ياسر عبدالحميد جادالكريم | O80: 578 | P80: 255
A81: =IF(B81="","",MAX($A$55:A80)+1) -> 26 | B81: ناجي ماهر عبدالله إسرائيل | C81: 179 | D81: 164 | E81: =IF(F81="","",MAX($E$55:E80)+1) -> 77 | F81: محمود حسين محمود عوض | G81: 477 | H81: 339 | I81: =IF(J81="","",MAX($I$55:I80)+1) -> 128 | J81: شيرين شبيب عبدالراضى امين | K81: 528 | L81: 205 | M81: =IF(N81="","",MAX($M$55:M80)+1) -> 179 | N81: وفاء عامر عبدالحميد حفنى | O81: 579 | P81: 256
A82: =IF(B82="","",MAX($A$55:A81)+1) -> 27 | B82: هادي عصام بخيت علي | C82: 180 | D82: 165 | E82: =IF(F82="","",MAX($E$55:E81)+1) -> 78 | F82: محمود عبده عبدالراضى امين | G82: 478 | H82: 340 | I82: =IF(J82="","",MAX($I$55:I81)+1) -> 129 | J82: شيرين محمد عبدالعزيز ابراهيم | K82: 529 | L82: 206 | M82: =IF(N82="","",MAX($M$55:M81)+1) -> 180 | N82: ولاء احمد اسماعيل عبدالغفار | O82: 580 | P82: 257
A83: =IF(B83="","",MAX($A$55:A82)+1) -> 28 | B83: ابتسام مصطفى أحمد بطيخ | C83: 181 | D83: 166 | E83: =IF(F83="","",MAX($E$55:E82)+1) -> 79 | F83: مصطفى الشبراوي عبده علي | G83: 479 | H83: 341 | I83: =IF(J83="","",MAX($I$55:I82)+1) -> 130 | J83: شيماء الوهجانى احمد عبدالمجيد | K83: 530 | L83: 207 | M83: =IF(N83="","",MAX($M$55:M82)+1) -> 181 | N83: ولاء حماد فهيم برعى | O83: 581 | P83: 258
A84: =IF(B84="","",MAX($A$55:A83)+1) -> 29 | B84: استير رأفت بخيت جرجس | C84: 182 | D84: 167 | E84: =IF(F84="","",MAX($E$55:E83)+1) -> 80 | F84: منصور بكير الديب فندى | G84: 480 | H84: 342 | I84: =IF(J84="","",MAX($I$55:I83)+1) -> 131 | J84: شيماء عبدالحميد محمود محمد | K84: 531 | L84: 208 | M84: =IF(N84="","",MAX($M$55:M83)+1) -> 182 | N84: ولاء كمال عيد ابوالعلاء | O84: 582 | P84: 259
A85: =IF(B85="","",MAX($A$55:A84)+1) -> 30 | B85: اسراء احمد محمد السيد | C85: 183 | D85: 168 | E85: =IF(F85="","",MAX($E$55:E84)+1) -> 81 | F85: مينا عدلى عبده ميخائيل | G85: 481 | H85: 343 | I85: =IF(J85="","",MAX($I$55:I84)+1) -> 132 | J85: شيماء عبدالراضى عبداللطيف على | K85: 532 | L85: 209 | M85: =IF(N85="","",MAX($M$55:M84)+1) -> 183 | N85: ياسمين سالم فتحي مدني | O85: 583 | P85: 260
A86: =IF(B86="","",MAX($A$55:A85)+1) -> 31 | B86: اسراء بيومى حسين محمد | C86: 184 | D86: 169 | E86: =IF(F86="","",MAX($E$55:E85)+1) -> 82 | F86: يوسف شعبان محمد على | G86: 482 | H86: 344 | I86: =IF(J86="","",MAX($I$55:I85)+1) -> 133 | J86: شيماء عبداللاه على احمد | K86: 533 | L86: 210 | M86: =IF(N86="","",MAX($M$55:M85)+1) -> 184 | N86: محمد رفعت محمود محمد | O86: 584 | P86: 261
A87: =IF(B87="","",MAX($A$55:A86)+1) -> 32 | B87: اسماء محمد عباس السيد | C87: 185 | D87: 1 | E87: =IF(F87="","",MAX($E$55:E86)+1) -> 83 | F87: يوسف على كمال حسونه | G87: 483 | H87: 345 | I87: =IF(J87="","",MAX($I$55:I86)+1) -> 134 | J87: شيماء عرفات محمود عبدالمطلب | K87: 534 | L87: 211 | M87: =IF(N87="","",MAX($M$55:M86)+1) -> 185 | N87: محمد محمود عبدالمعبود جادالكريم | O87: 585 | P87: 262
A88: =IF(B88="","",MAX($A$55:A87)+1) -> 33 | B88: الزهراء علي محمود علي | C88: 186 | D88: 2 | E88: =IF(F88="","",MAX($E$55:E87)+1) -> 84 | F88: احلام عبدالشافى عبدالحميد على | G88: 484 | H88: 346 | I88: =IF(J88="","",MAX($I$55:I87)+1) -> 135 | J88: صباح محمود أحمد علي | K88: 535 | L88: 212 | M88: =IF(N88="","",MAX($M$55:M87)+1) -> 
A89: =IF(B89="","",MAX($A$55:A88)+1) -> 34 | B89: امل إبراهيم على محمد | C89: 187 | D89: 3 | E89: =IF(F89="","",MAX($E$55:E88)+1) -> 85 | F89: اسراء محمود صابر حسين | G89: 485 | H89: 347 | I89: =IF(J89="","",MAX($I$55:I88)+1) -> 136 | J89: صفاء حمام عابدين محمود | K89: 536 | L89: 213 | M89: =IF(N89="","",MAX($M$55:M88)+1) -> 
A90: =IF(B90="","",MAX($A$55:A89)+1) -> 35 | B90: امل محمد خلف كامل | C90: 188 | D90: 4 | E90: =IF(F90="","",MAX($E$55:E89)+1) -> 86 | F90: اسراء هلال فاضل رضوان | G90: 486 | H90: 348 | I90: =IF(J90="","",MAX($I$55:I89)+1) -> 137 | J90: صفاء حمدي فاروق إبراهيم | K90: 537 | L90: 214 | M90: =IF(N90="","",MAX($M$55:M89)+1) -> 
A91: =IF(B91="","",MAX($A$55:A90)+1) -> 36 | B91: امل ناصر أحمد عبدالغفار | C91: 189 | D91: 5 | E91: =IF(F91="","",MAX($E$55:E90)+1) -> 87 | F91: اسماء عاشور محمد فايز | G91: 487 | H91: 349 | I91: =IF(J91="","",MAX($I$55:I90)+1) -> 138 | J91: ضحيه محمد احمد جادالكريم | K91: 538 | L91: 215 | M91: =IF(N91="","",MAX($M$55:M90)+1) -> 
A92: =IF(B92="","",MAX($A$55:A91)+1) -> 37 | B92: اميره السيد عيد أبوالعلاء | C92: 190 | D92: 6 | E92: =IF(F92="","",MAX($E$55:E91)+1) -> 88 | F92: اسماء ناصر كليب صادق | G92: 488 | H92: 350 | I92: =IF(J92="","",MAX($I$55:I91)+1) -> 139 | J92: عبير احمد نظير احمد | K92: 539 | L92: 216 | M92: =IF(N92="","",MAX($M$55:M91)+1) -> 
A93: =IF(B93="","",MAX($A$55:A92)+1) -> 38 | B93: انجى تلاصون سعيد جرجس | C93: 191 | D93: 7 | E93: =IF(F93="","",MAX($E$55:E92)+1) -> 89 | F93: امل سلامه فتحى عبدالموجود | G93: 489 | H93: 351 | I93: =IF(J93="","",MAX($I$55:I92)+1) -> 140 | J93: علا محمد صابر حسين | K93: 540 | L93: 217 | M93: =IF(N93="","",MAX($M$55:M92)+1) -> 
A94: =IF(B94="","",MAX($A$55:A93)+1) -> 39 | B94: ايات أبوالعلا عبدالقادر عبداللاه | C94: 192 | D94: 8 | E94: =IF(F94="","",MAX($E$55:E93)+1) -> 90 | F94: امل عبدالرؤف مسعد احمد | G94: 490 | H94: 352 | I94: =IF(J94="","",MAX($I$55:I93)+1) -> 141 | J94: غاده محمد حلمي السيد | K94: 541 | L94: 218 | M94: =IF(N94="","",MAX($M$55:M93)+1) -> 
A95: =IF(B95="","",MAX($A$55:A94)+1) -> 40 | B95: ايات أحمد عبدالحميد عبدالباسط | C95: 193 | D95: 9 | E95: =IF(F95="","",MAX($E$55:E94)+1) -> 91 | F95: امل عبدالنظير طلب حسن | G95: 491 | H95: 353 | I95: =IF(J95="","",MAX($I$55:I94)+1) -> 142 | J95: فاطمه تمام عبداللطيف محمد | K95: 542 | L95: 219 | M95: =IF(N95="","",MAX($M$55:M94)+1) -> 
A96: =IF(B96="","",MAX($A$55:A95)+1) -> 41 | B96: ايمان جادالكريم عبدالستار عبدالمعبود | C96: 194 | D96: 10 | E96: =IF(F96="","",MAX($E$55:E95)+1) -> 92 | F96: امل محمود يونس محمد | G96: 492 | H96: 354 | I96: =IF(J96="","",MAX($I$55:I95)+1) -> 143 | J96: فايزه أحمد محمد عثمان | K96: 543 | L96: 220 | M96: =IF(N96="","",MAX($M$55:M95)+1) -> 
A97: =IF(B97="","",MAX($A$55:A96)+1) -> 42 | B97: آيه جيلاني عاصم توفيق | C97: 195 | D97: 11 | E97: =IF(F97="","",MAX($E$55:E96)+1) -> 93 | F97: امنيه شحاته السبع جادالكريم | G97: 493 | H97: 170 | I97: =IF(J97="","",MAX($I$55:I96)+1) -> 144 | J97: كريمه صابر نورالدين رياض | K97: 544 | L97: 221 | M97: =IF(N97="","",MAX($M$55:M96)+1) -> 
A98: =IF(B98="","",MAX($A$55:A97)+1) -> 43 | B98: آيه محمود على سليمان | C98: 196 | D98: 12 | E98: =IF(F98="","",MAX($E$55:E97)+1) -> 94 | F98: اميره عاطف مهدى السيد | G98: 494 | H98: 171 | I98: =IF(J98="","",MAX($I$55:I97)+1) -> 145 | J98: كريمه مدنى عبدالحميد ابراهيم | K98: 545 | L98: 222 | M98: =IF(N98="","",MAX($M$55:M97)+1) -> 
A99: =IF(B99="","",MAX($A$55:A98)+1) -> 44 | B99: آيه يونس على أحمد | C99: 197 | D99: 13 | E99: =IF(F99="","",MAX($E$55:E98)+1) -> 95 | F99: انوار اسعد الديب فندى | G99: 495 | H99: 172 | I99: =IF(J99="","",MAX($I$55:I98)+1) -> 146 | J99: كوثر محمد علي ابراهيم | K99: 546 | L99: 223 | M99: =IF(N99="","",MAX($M$55:M98)+1) -> 
A100: =IF(B100="","",MAX($A$55:A99)+1) -> 45 | B100: بشاير محمد حناوى توفيق | C100: 198 | D100: 14 | E100: =IF(F100="","",MAX($E$55:E99)+1) -> 96 | F100: ايمان احمد عبدالصبور حسين | G100: 496 | H100: 173 | I100: =IF(J100="","",MAX($I$55:I99)+1) -> 147 | J100: لوسى عابدين عبدالنظير نورالدين | K100: 547 | L100: 224 | M100: =IF(N100="","",MAX($M$55:M99)+1) -> 
A101: =IF(B101="","",MAX($A$55:A100)+1) -> 46 | B101: حبيبه كمال حسونه رضوان | C101: 199 | D101: 15 | E101: =IF(F101="","",MAX($E$55:E100)+1) -> 97 | F101: ايمان اسعد احمد زيدان | G101: 497 | H101: 174 | I101: =IF(J101="","",MAX($I$55:I100)+1) -> 148 | J101: مرثا سرجيوس صابر صادق | K101: 548 | L101: 225 | M101: =IF(N101="","",MAX($M$55:M100)+1) -> 
A102: =IF(B102="","",MAX($A$55:A101)+1) -> 47 | B102: خلود أيمن قنديل أحمد | C102: 200 | D102: 16 | E102: =IF(F102="","",MAX($E$55:E101)+1) -> 98 | F102: ايه السيد محمد عبدالحي | G102: 498 | H102: 175 | I102: =IF(J102="","",MAX($I$55:I101)+1) -> 149 | J102: مروه اشرف احمد عجور | K102: 549 | L102: 226 | M102: =IF(N102="","",MAX($M$55:M101)+1) -> 
A103: =IF(B103="","",MAX($A$55:A102)+1) -> 48 | B103: خلود فراج صلاح عبداللاه | C103: 201 | D103: 17 | E103: =IF(F103="","",MAX($E$55:E102)+1) -> 99 | F103: ايه خلف احمد حسن | G103: 499 | H103: 176 | I103: =IF(J103="","",MAX($I$55:I102)+1) -> 150 | J103: مروه شعبان عبدالعزيز محمد | K103: 550 | L103: 227 | M103: =IF(N103="","",MAX($M$55:M102)+1) -> 
A104: =IF(B104="","",MAX($A$55:A103)+1) -> 49 | B104: خلود ناجح فتحي العربي | C104: 202 | D104: 18 | E104: =IF(F104="","",MAX($E$55:E103)+1) -> 100 | F104: ايه محمد ذكى ابوالمجد | G104: 500 | H104: 177 | I104: =IF(J104="","",MAX($I$55:I103)+1) -> 151 | J104: مروه محمد احمد على | K104: 551 | L104: 228 | M104: =IF(N104="","",MAX($M$55:M103)+1) -> 
A105: =IF(B105="","",MAX($A$55:A104)+1) -> 50 | B105: دعاء عبدالمنصف عبده علي | C105: 203 | D105: 19 | E105: =IF(F105="","",MAX($E$55:E104)+1) -> 101 | F105: حسناء كمال احمد صادق | G105: 501 | H105: 178 | I105: =IF(J105="","",MAX($I$55:I104)+1) -> 152 | J105: مريم محمود أحمد جادالكريم | K105: 552 | L105: 229 | M105: =IF(N105="","",MAX($M$55:M104)+1) -> 
A106: =IF(B106="","",MAX($A$55:A105)+1) -> 51 | B106: دنيا علاء أحمد عبدالرحيم | C106: 204 | D106: 20 | E106: =IF(F106="","",MAX($E$55:E105)+1) -> 102 | F106: حنان شبيب الديب متندى | G106: 502 | H106: 179 | I106: =IF(J106="","",MAX($I$55:I105)+1) -> 153 | J106: مريم محمود عبدالحميد عبدالنبى | K106: 553 | L106: 230 | M106: =IF(N106="","",MAX($M$55:M105)+1) -> 
B107: دنيا محمد بكرى محمد | C107: 205 | D107: 21
B108: دينا حسن مصطفى محمود | C108: 206 | D108: 22
B109: دينا رمضان محمد عثمان | C109: 207 | D109: 23
B110: دينا عادل عبدالباقي أحمد | C110: 208 | D110: 24
B111: رباح محمد علي خربطلي | C111: 209 | D111: 25
B112: رحاب هاشم حسن محمد | C112: 210 | D112: 26
B113: رشا راضى محمود إبراهيم | C113: 211 | D113: 27
B114: زهراء رمضان على أبوالحسن | C114: 212 | D114: 28
B115: زهراء عادل الصافي سباق | C115: 213 | D115: 29
B116: زينب جاد عبدالحميد جادالكريم | C116: 214 | D116: 30
B117: زينب صبري طلعات رضوان | C117: 215 | D117: 31
B118: زينب قنديل الديب فندى | C118: 216 | D118: 32
B119: ساره رمضان عبداللاه صابر | C119: 217 | D119: 33
B120: ساميه اشرف حليم كراس | C120: 218 | D120: 34
B121: سلمى اشرف احمد عجور | C121: 219 | D121: 35
B122: سماح صلاح محمد بهلول | C122: 220 | D122: 36
B123: سمر محروس علي أحمد | C123: 221 | D123: 37
B124: سوسن عبدالحميد عبدالسميع عابدين | C124: 222 | D124: 38
B125: شاهنده عباس إبراهيم كامل | C125: 223 | D125: 39
B126: شاهنده كامل سليم كامل | C126: 224 | D126: 40
B127: شاهنده محمود محمد فهيم | C127: 225 | D127: 41
B128: شهيره فراج محمد أحمد | C128: 226 | D128: 42
B129: شيماء قناوى الضبع جادالكريم | C129: 227 | D129: 43
B130: عبير أبوالسعود عبدالسميع أبوالحسن | C130: 228 | D130: 44
B131: عبير عرفات الديب فندي | C131: 229 | D131: 45
B132: عبير علي أحمد علي | C132: 230 | D132: 46
B133: عليا عبدالمنعم حسن محمد | C133: 231 | D133: 47
B134: عليا كليب علي خربطلي | C134: 232 | D134: 48
B135: غدير اشرف حمدى محمد | C135: 233 | D135: 49
B136: فاطمه رمضان على أبوالحسن | C136: 234 | D136: 50
B137: فايزه أحمد سليمان محمد | C137: 235 | D137: 51
B138: فرح علي محمد عبدالمجيد | C138: 236 | D138: 52
B139: ماري صبري صدقى شنوده | C139: 237 | D139: 53
B140: محبات معتمد كليب صادق | C140: 238 | D140: 54
B141: مروه عامر كليب صادق | C141: 239 | D141: 55
B142: مروه عمر محمود عجور | C142: 240 | D142: 56
B143: مروه محمد صدقي عبداللطيف | C143: 241 | D143: 57
B144: مروه محمود عبدالعظيم محمد | C144: 242 | D144: 58
B145: مريم عاطف عبدالله جبرائيل | C145: 243 | D145: 59
B146: مريم عبدالحميد رضوان توفيق | C146: 244 | D146: 60
B147: مريم عبدالحميد محمود عبدالمطلب | C147: 245 | D147: 61
B148: مريم محمد محمود أحمد | C148: 246 | D148: 62
B149: مشيره أحمد محمد حفنى | C149: 247 | D149: 63
B150: ملك عبدالناصر محمود أحمد | C150: 248 | D150: 64
B151: منار السيد أحمد صديق | C151: 249 | D151: 65
B152: منار أبوالعلاء عبداللطيف موسى | C152: 250 | D152: 66
B153: منار أحمد عبدالحميد عبدالباسط | C153: 251 | D153: 67
B154: منار عباس عبدالباقي أحمد | C154: 252 | D154: 68
B155: منه كحلاوي محمد الصالح | C155: 253 | D155: 69
B156: ندا بسيوني مهران محمد | C156: 254 | D156: 70
B157: نصره قناوي صلاح عبداللاه | C157: 255 | D157: 71
B158: نهال خليفة كامل احمد | C158: 256 | D158: 72
B159: نهال محمدكيلاني كيلاني محمد | C159: 257 | D159: 73
B160: نورا قاعود حمدي أحمد | C160: 258 | D160: 74
B161: نورهان عصام حمدان مصطفى | C161: 259 | D161: 75
B162: نيجار رفاعى محمد أحمد | C162: 260 | D162: 76
B163: هاجر عيد احمد عبدالمولى | C163: 261 | D163: 77
B164: هبه حمدي فهيم برعي | C164: 262 | D164: 78
B165: هويدا عبدالحميد العربي عبدلي | C165: 263 | D165: 79
B166: ياسمين أبوالعلا محمد عبداللاه | C166: 264 | D166: 80
B167: ياسمين بلال محمد شاكر | C167: 265 | D167: 81
B168: ياسمين رجب فهيم عبدالعاطى | C168: 266 | D168: 82
B169: ياسمين عبدالفضيل طلب حسن | C169: 267 | D169: 83
B170: أم هاشم عبدالراضي علي محمد | C170: 268 | D170: 84
B171: ايمان عبدالراضي السيد سالمان | C171: 269 | D171: 85

Sheet الصف الأول
A1: الصف الأول الاعدادي
A2: م | B2: الاسم | C2: رقم الجلوس | D2: سري ترم أول | E2: سري ترم ثان | F2: النوع | G2: الفصل | H2: الحالة | I2: الديانة | J2: الجنسية | K2: الرقم القومي | L2: تاريخ الميلاد
A3: 1 | B3: ابراهيم علي حمدي عبدالعال | C3: 101 | D3: 86 | E3: 1 | F3: ذكر | G3: (1-1) | H3: مستجد | I3: مسلم | J3: مصرى | L3: =DATE(IF(LEFT($K3,1)="2",MID($K3,2,2),"20"&MID($K3,2,2)),MID($K3,4,2),MID($K3,6,2)) -> 
A4: 2 | B4: ابراهيم قنديل الديب فندى | C4: 102 | D4: 87 | E4: 2 | F4: ذكر | G4: (1-1) | H4: مستجد | I4: مسلم | J4: مصرى | L4: =DATE(IF(LEFT($K4,1)="2",MID($K4,2,2),"20"&MID($K4,2,2)),MID($K4,4,2),MID($K4,6,2)) -> 
A5: 3 | B5: ابوالخير عاشور مصطفى عثمان | C5: 103 | D5: 88 | E5: 3 | F5: ذكر | G5: (1-1) | H5: مستجد | I5: مسلم | J5: مصرى
A6: 4 | B6: احمد البسيوني احمد بطيخ | C6: 104 | D6: 89 | E6: 4 | F6: ذكر | G6: (1-1) | H6: مستجد | I6: مسلم | J6: مصرى
A7: 5 | B7: احمد العبد عسران عابدين | C7: 105 | D7: 90 | E7: 5 | F7: ذكر | G7: (1-1) | H7: مستجد | I7: مسلم | J7: مصرى
A8: 6 | B8: احمد بكري محمد فندي | C8: 106 | D8: 91 | E8: 6 | F8: ذكر | G8: (1-1) | H8: مستجد | I8: مسلم | J8: مصرى
A9: 7 | B9: احمد خلف جاد شفاعي | C9: 107 | D9: 92 | E9: 7 | F9: ذكر | G9: (1-1) | H9: مستجد | I9: مسلم | J9: مصرى
A10: 8 | B10: احمد عادل عبدالغفار عبدالولي | C10: 108 | D10: 93 | E10: 8 | F10: ذكر | G10: (1-1) | H10: مستجد | I10: مسلم | J10: مصرى
A11: 9 | B11: احمد علاء علي السيد | C11: 109 | D11: 94 | E11: 9 | F11: ذكر | G11: (1-1) | H11: مستجد | I11: مسلم | J11: مصرى
A12: 10 | B12: احمد محمد احمد محمد | C12: 110 | D12: 95 | E12: 10 | F12: ذكر | G12: (1-1) | H12: مستجد | I12: مسلم | J12: مصرى
A13: 11 | B13: احمد محمد حماد عبدالمبدي | C13: 111 | D13: 96 | E13: 11 | F13: ذكر | G13: (1-1) | H13: مستجد | I13: مسلم | J13: مصرى
A14: 12 | B14: احمد مطاوع حنفي محمود | C14: 112 | D14: 97 | E14: 12 | F14: ذكر | G14: (1-1) | H14: مستجد | I14: مسلم | J14: مصرى
A15: 13 | B15: اسامه عيد مصطفى محمد | C15: 113 | D15: 98 | E15: 13 | F15: ذكر | G15: (1-1) | H15: مستجد | I15: مسلم | J15: مصرى
A16: 14 | B16: اسلام أحمد محمود أحمد | C16: 114 | D16: 99 | E16: 14 | F16: ذكر | G16: (1-1) | H16: مستجد | I16: مسلم | J16: مصرى
A17: 15 | B17: اسلام جلال السيد عوض | C17: 115 | D17: 100 | E17: 15 | F17: ذكر | G17: (1-1) | H17: مستجد | I17: مسلم | J17: مصرى
A18: 16 | B18: اسلام محمود محمد أحمد | C18: 116 | D18: 101 | E18: 16 | F18: ذكر | G18: (1-1) | H18: مستجد | I18: مسلم | J18: مصرى
A19: 17 | B19: اسلام مختار عبدالنعيم أبوالحسن | C19: 117 | D19: 102 | E19: 17 | F19: ذكر | G19: (1-1) | H19: مستجد | I19: مسلم | J19: مصرى
A20: 18 | B20: اسماعيل راجح اسماعيل محمد | C20: 118 | D20: 103 | E20: 18 | F20: ذكر | G20: (1-1) | H20: باق | I20: مسلم | J20: مصرى
A21: 19 | B21: البدرى عبدالمؤمن عبدالكريم صابر | C21: 119 | D21: 104 | E21: 19 | F21: ذكر | G21: (1-1) | H21: مستجد | I21: مسلم | J21: مصرى
A22: 20 | B22: السيد ثروت محمد ابوالفضل | C22: 120 | D22: 105 | E22: 20 | F22: ذكر | G22: (1-1) | H22: مستجد | I22: مسلم | J22: مصرى
A23: 21 | B23: حاتم شعبان شاكر إبراهيم | C23: 121 | D23: 106 | E23: 21 | F23: ذكر | G23: (1-1) | H23: مستجد | I23: مسلم | J23: مصرى
A24: 22 | B24: حمزه ابراهيم عبدالنظير محمد | C24: 122 | D24: 107 | E24: 22 | F24: ذكر | G24: (1-1) | H24: مستجد | I24: مسلم | J24: مصرى
A25: 23 | B25: حسام البدري خلف كامل | C25: 123 | D25: 108 | E25: 23 | F25: ذكر | G25: (1-1) | H25: مستجد | I25: مسلم | J25: مصرى
A26: 24 | B26: حشمت الشمبرى حشمت محمد | C26: 124 | D26: 109 | E26: 24 | F26: ذكر | G26: (1-1) | H26: مستجد | I26: مسلم | J26: مصرى
A27: 25 | B27: حماده الوهباني أحمد عبدالمجيد | C27: 125 | D27: 110 | E27: 25 | F27: ذكر | G27: (1-1) | H27: مستجد | I27: مسلم | J27: مصرى
A28: 26 | B28: خالد احمد فايز محمد | C28: 126 | D28: 111 | E28: 26 | F28: ذكر | G28: (1-1) | H28: مستجد | I28: مسلم | J28: مصرى
A29: 27 | B29: خالد علاء احمد عبدالرحيم | C29: 127 | D29: 112 | E29: 27 | F29: ذكر | G29: (1-1) | H29: مستجد | I29: مسلم | J29: مصرى
A30: 28 | B30: رياض عبدالشافي حمدان عبداللاه | C30: 128 | D30: 113 | E30: 28 | F30: ذكر | G30: (1-1) | H30: مستجد | I30: مسلم | J30: مصرى
A31: 29 | B31: زياد علاء عبده علي | C31: 129 | D31: 114 | E31: 29 | F31: ذكر | G31: (1-1) | H31: مستجد | I31: مسلم | J31: مصرى
A32: 30 | B32: شرف الدين محمد فهيم برعي | C32: 130 | D32: 115 | E32: 30 | F32: ذكر | G32: (1-1) | H32: مستجد | I32: مسلم | J32: مصرى
A33: 31 | B33: صالح محمود صالح محمد | C33: 131 | D33: 116 | E33: 31 | F33: ذكر | G33: (1-1) | H33: مستجد | I33: مسلم | J33: مصرى
A34: 32 | B34: ضياء صابر عبدالنظير صابر | C34: 132 | D34: 117 | E34: 32 | F34: ذكر | G34: (1-1) | H34: مستجد | I34: مسلم | J34: مصرى
A35: 33 | B35: طارق أحمد عبداللاه صابر | C35: 133 | D35: 118 | E35: 33 | F35: ذكر | G35: (1-1) | H35: مستجد | I35: مسلم | J35: مصرى
A36: 34 | B36: طلال هيثم حمدي مدني | C36: 134 | D36: 119 | E36: 34 | F36: ذكر | G36: (1-1) | H36: مستجد | I36: مسلم | J36: مصرى
A37: 35 | B37: عبدالراضي عبده عبدالراضي أمين | C37: 135 | D37: 120 | E37: 35 | F37: ذكر | G37: (1-1) | H37: مستجد | I37: مسلم | J37: مصرى
A38: 36 | B38: عبدالرحمن رفاعى محمود محمد | C38: 136 | D38: 121 | E38: 36 | F38: ذكر | G38: (1-1) | H38: مستجد | I38: مسلم | J38: مصرى
A39: 37 | B39: عبدالرحمن رمضان حماد أحمد | C39: 137 | D39: 122 | E39: 37 | F39: ذكر | G39: (1-1) | H39: مستجد | I39: مسلم | J39: مصرى
A40: 38 | B40: عبدالرحمن عصمت محمد جميل | C40: 138 | D40: 123 | E40: 38 | F40: ذكر | G40: (1-1) | H40: مستجد | I40: مسلم | J40: مصرى
A41: 39 | B41: عبدالرحيم حمام عابدين محمود | C41: 139 | D41: 124 | E41: 39 | F41: ذكر | G41: (1-1) | H41: مستجد | I41: مسلم | J41: مصرى
A42: 40 | B42: عبدالله شبيب عباس السيد | C42: 140 | D42: 125 | E42: 40 | F42: ذكر | G42: (1-1) | H42: مستجد | I42: مسلم | J42: مصرى
A43: 41 | B43: عبدالله محمد أحمد محمود | C43: 141 | D43: 126 | E43: 41 | F43: ذكر | G43: (1-2) | H43: مستجد | I43: مسلم | J43: مصرى
A44: 42 | B44: عبده أحمد اسماعيل عبدالغفار | C44: 142 | D44: 127 | E44: 42 | F44: ذكر | G44: (1-2) | H44: مستجد | I44: مسلم | J44: مصرى
A45: 43 | B45: عبده صابر محمد فرج | C45: 143 | D45: 128 | E45: 43 | F45: ذكر | G45: (1-2) | H45: مستجد | I45: مسلم | J45: مصرى
A46: 44 | B46: علي حازم حسني فهلي | C46: 144 | D46: 129 | E46: 44 | F46: ذكر | G46: (1-2) | H46: مستجد | I46: مسلم | J46: مصرى
A47: 45 | B47: علي حسام عبد الستار عبد المعبود | C47: 145 | D47: 130 | E47: 45 | F47: ذكر | G47: (1-2) | H47: مستجد | I47: مسلم | J47: مصرى
A48: 46 | B48: علي خليفه مدني حسب | C48: 146 | D48: 131 | E48: 46 | F48: ذكر | G48: (1-2) | H48: مستجد | I48: مسلم | J48: مصرى
A49: 47 | B49: علي عبدالغني البربري حسن | C49: 147 | D49: 132 | E49: 47 | F49: ذكر | G49: (1-2) | H49: مستجد | I49: مسلم | J49: مصرى
A50: 48 | B50: علي محمدالسعيد علي بدوي | C50: 148 | D50: 133 | E50: 48 | F50: ذكر | G50: (1-2) | H50: مستجد | I50: مسلم | J50: مصرى
A51: 49 | B51: عمرو سليم عبداللطيف رضا | C51: 149 | D51: 134 | E51: 49 | F51: ذكر | G51: (1-2) | H51: مستجد | I51: مسلم | J51: مصرى
A52: 50 | B52: غندور محمد أحمد عبدالباسط | C52: 150 | D52: 135 | E52: 50 | F52: ذكر | G52: (1-2) | H52: مستجد | I52: مسلم | J52: مصرى
A53: 51 | B53: فارس ناجح العربى عبدلى | C53: 151 | D53: 136 | E53: 51 | F53: ذكر | G53: (1-2) | H53: مستجد | I53: مسلم | J53: مصرى
A54: 52 | B54: فرج عبدالعاطى ذكى أبوالمجد | C54: 152 | D54: 137 | E54: 52 | F54: ذكر | G54: (1-2) | H54: مستجد | I54: مسلم | J54: مصرى
A55: 53 | B55: فهد علي أحمد بطيخ | C55: 153 | D55: 138 | E55: 53 | F55: ذكر | G55: (1-2) | H55: مستجد | I55: مسلم | J55: مصرى
A56: 54 | B56: كريم عابدين عبدالنظير عابدين | C56: 154 | D56: 139 | E56: 54 | F56: ذكر | G56: (1-2) | H56: مستجد | I56: مسلم | J56: مصرى
A57: 55 | B57: كريم محمدعصمت مهدى السيد | C57: 155 | D57: 140 | E57: 55 | F57: ذكر | G57: (1-2) | H57: مستجد | I57: مسلم | J57: مصرى
A58: 56 | B58: كريم محمود زكي عبدالحميد | C58: 156 | D58: 141 | E58: 56 | F58: ذكر | G58: (1-2) | H58: مستجد | I58: مسلم | J58: مصرى
A59: 57 | B59: كيلاني إبراهيم كيلاني محمد | C59: 157 | D59: 142 | E59: 57 | F59: ذكر | G59: (1-2) | H59: مستجد | I59: مسلم | J59: مصرى
A60: 58 | B60: محمد ابوالعلا محمد عبداللاه | C60: 158 | D60: 143 | E60: 58 | F60: ذكر | G60: (1-2) | H60: مستجد | I60: مسلم | J60: مصرى
A61: 59 | B61: محمد أحمد محمود محمد | C61: 159 | D61: 144 | E61: 59 | F61: ذكر | G61: (1-2) | H61: مستجد | I61: مسلم | J61: مصرى
A62: 60 | B62: محمد رمضان عبدالحميد أحمد | C62: 160 | D62: 145 | E62: 60 | F62: ذكر | G62: (1-2) | H62: مستجد | I62: مسلم | J62: مصرى
A63: 61 | B63: محمد عبدالناصر محمد ثابت | C63: 161 | D63: 146 | E63: 61 | F63: ذكر | G63: (1-2) | H63: مستجد | I63: مسلم | J63: مصرى
A64: 62 | B64: محمد عثمان فوزي عثمان | C64: 162 | D64: 147 | E64: 62 | F64: ذكر | G64: (1-2) | H64: مستجد | I64: مسلم | J64: مصرى
A65: 63 | B65: محمد عدلي إبراهيم محمود | C65: 163 | D65: 148 | E65: 63 | F65: ذكر | G65: (1-2) | H65: مستجد | I65: مسلم | J65: مصرى
A66: 64 | B66: محمد علي محمد شاكر | C66: 164 | D66: 149 | E66: 64 | F66: ذكر | G66: (1-2) | H66: مستجد | I66: مسلم | J66: مصرى
A67: 65 | B67: محمد قصيدي حمدان برعي | C67: 165 | D67: 150 | E67: 65 | F67: ذكر | G67: (1-2) | H67: مستجد | I67: مسلم | J67: مصرى
A68: 66 | B68: محمد متولي عبداللاه صابر | C68: 166 | D68: 151 | E68: 66 | F68: ذكر | G68: (1-2) | H68: مستجد | I68: مسلم | J68: مصرى | L68: =DATE(IF(LEFT($K68,1)="2",MID($K68,2,2),"20"&MID($K68,2,2)),MID($K68,4,2),MID($K68,6,2)) -> 
A69: 67 | B69: محمد محسن عبدالمبدي عبدالحميد | C69: 167 | D69: 152 | E69: 67 | F69: ذكر | G69: (1-2) | H69: مستجد | I69: مسلم | J69: مصرى
A70: 68 | B70: محمد محمود حسونه عبدالحميد | C70: 168 | D70: 153 | E70: 68 | F70: ذكر | G70: (1-2) | H70: مستجد | I70: مسلم | J70: مصرى
A71: 69 | B71: محمد يونس الصغير أحمد | C71: 169 | D71: 154 | E71: 69 | F71: ذكر | G71: (1-2) | H71: مستجد | I71: مسلم | J71: مصرى
A72: 70 | B72: محمود ابو الحلقان العربى عبدلى | C72: 170 | D72: 155 | E72: 70 | F72: ذكر | G72: (1-2) | H72: مستجد | I72: مسلم | J72: مصرى
A73: 71 | B73: محمود رفعت حمدان عبدالعاطى | C73: 171 | D73: 156 | E73: 71 | F73: ذكر | G73: (1-2) | H73: مستجد | I73: مسلم | J73: مصرى
A74: 72 | B74: محمود عبدالحميد صديق عبدالمجيد | C74: 172 | D74: 157 | E74: 72 | F74: ذكر | G74: (1-2) | H74: مستجد | I74: مسلم | J74: مصرى
A75: 73 | B75: محمود عبدالراضي عبداللطيف علي | C75: 173 | D75: 158 | E75: 73 | F75: ذكر | G75: (1-2) | H75: مستجد | I75: مسلم | J75: مصرى
A76: 74 | B76: محمود عربى حمدى عبدالعاطى | C76: 174 | D76: 159 | E76: 74 | F76: ذكر | G76: (1-2) | H76: مستجد | I76: مسلم | J76: مصرى
A77: 75 | B77: محمود علي عبداللاه صابر | C77: 175 | D77: 160 | E77: 75 | F77: ذكر | G77: (1-2) | H77: مستجد | I77: مسلم | J77: مصرى
A78: 76 | B78: مروان امبابي ابوناصر عبداللاه | C78: 176 | D78: 161 | E78: 76 | F78: ذكر | G78: (1-2) | H78: مستجد | I78: مسلم | J78: مصرى
A79: 77 | B79: مروان رمضان محمد صادق | C79: 177 | D79: 162 | E79: 77 | F79: ذكر | G79: (1-2) | H79: مستجد | I79: مسلم | J79: مصرى
A80: 78 | B80: مصطفى عسران فوزي محمود | C80: 178 | D80: 163 | E80: 78 | F80: ذكر | G80: (1-2) | H80: مستجد | I80: مسلم | J80: مصرى
A81: 79 | B81: ناجي ماهر عبدالله إسرائيل | C81: 179 | D81: 164 | E81: 79 | F81: ذكر | G81: (1-2) | H81: مستجد | I81: مسيحى | J81: مصرى
A82: 80 | B82: هادي عصام بخيت علي | C82: 180 | D82: 165 | E82: 80 | F82: ذكر | G82: (1-2) | H82: مستجد | I82: مسلم | J82: مصرى
A83: 81 | B83: ابتسام مصطفى أحمد بطيخ | C83: 181 | D83: 166 | E83: 81 | F83: انثى | G83: (1-3) | H83: مستجد | I83: مسلم | J83: مصرى
A84: 82 | B84: استير رأفت بخيت جرجس | C84: 182 | D84: 167 | E84: 82 | F84: انثى | G84: (1-3) | H84: مستجد | I84: مسيحي | J84: مصرى
A85: 83 | B85: اسراء احمد محمد السيد | C85: 183 | D85: 168 | E85: 83 | F85: انثى | G85: (1-3) | H85: مستجد | I85: مسلم | J85: مصرى
A86: 84 | B86: اسراء بيومى حسين محمد | C86: 184 | D86: 169 | E86: 84 | F86: انثى | G86: (1-3) | H86: مستجد | I86: مسلم | J86: مصرى
A87: 85 | B87: اسماء محمد عباس السيد | C87: 185 | D87: 1 | E87: 85 | F87: انثى | G87: (1-3) | H87: مستجد | I87: مسلم | J87: مصرى
A88: 86 | B88: الزهراء علي محمود علي | C88: 186 | D88: 2 | E88: 86 | F88: انثى | G88: (1-3) | H88: مستجد | I88: مسلم | J88: مصرى
A89: 87 | B89: امل إبراهيم على محمد | C89: 187 | D89: 3 | E89: 87 | F89: انثى | G89: (1-3) | H89: مستجد | I89: مسلم | J89: مصرى
A90: 88 | B90: امل محمد خلف كامل | C90: 188 | D90: 4 | E90: 88 | F90: انثى | G90: (1-3) | H90: مستجد | I90: مسلم | J90: مصرى
A91: 89 | B91: امل ناصر أحمد عبدالغفار | C91: 189 | D91: 5 | E91: 89 | F91: انثى | G91: (1-3) | H91: مستجد | I91: مسلم | J91: مصرى
A92: 90 | B92: اميره السيد عيد أبوالعلاء | C92: 190 | D92: 6 | E92: 90 | F92: انثى | G92: (1-3) | H92: مستجد | I92: مسلم | J92: مصرى
A93: 91 | B93: انجى تلاصون سعيد جرجس | C93: 191 | D93: 7 | E93: 91 | F93: انثى | G93: (1-3) | H93: مستجد | I93: مسيحي | J93: مصرى
A94: 92 | B94: ايات أبوالعلا عبدالقادر عبداللاه | C94: 192 | D94: 8 | E94: 92 | F94: انثى | G94: (1-3) | H94: مستجد | I94: مسلم | J94: مصرى
A95: 93 | B95: ايات أحمد عبدالحميد عبدالباسط | C95: 193 | D95: 9 | E95: 93 | F95: انثى | G95: (1-3) | H95: مستجد | I95: مسلم | J95: مصرى
A96: 94 | B96: ايمان جادالكريم عبدالستار عبدالمعبود | C96: 194 | D96: 10 | E96: 94 | F96: انثى | G96: (1-3) | H96: مستجد | I96: مسلم | J96: مصرى
A97: 95 | B97: آيه جيلاني عاصم توفيق | C97: 195 | D97: 11 | E97: 95 | F97: انثى | G97: (1-3) | H97: مستجد | I97: مسلم | J97: مصرى
A98: 96 | B98: آيه محمود على سليمان | C98: 196 | D98: 12 | E98: 96 | F98: انثى | G98: (1-3) | H98: مستجد | I98: مسلم | J98: مصرى
A99: 97 | B99: آيه يونس على أحمد | C99: 197 | D99: 13 | E99: 97 | F99: انثى | G99: (1-3) | H99: مستجد | I99: مسلم | J99: مصرى
A100: 98 | B100: بشاير محمد حناوى توفيق | C100: 198 | D100: 14 | E100: 98 | F100: انثى | G100: (1-3) | H100: مستجد | I100: مسلم | J100: مصرى
A101: 99 | B101: حبيبه كمال حسونه رضوان | C101: 199 | D101: 15 | E101: 99 | F101: انثى | G101: (1-3) | H101: مستجد | I101: مسلم | J101: مصرى
A102: 100 | B102: خلود أيمن قنديل أحمد | C102: 200 | D102: 16 | E102: 100 | F102: انثى | G102: (1-3) | H102: مستجد | I102: مسلم | J102: مصرى
A103: 101 | B103: خلود فراج صلاح عبداللاه | C103: 201 | D103: 17 | E103: 101 | F103: انثى | G103: (1-3) | H103: مستجد | I103: مسلم | J103: مصرى
A104: 102 | B104: خلود ناجح فتحي العربي | C104: 202 | D104: 18 | E104: 102 | F104: انثى | G104: (1-3) | H104: مستجد | I104: مسلم | J104: مصرى
A105: 103 | B105: دعاء عبدالمنصف عبده علي | C105: 203 | D105: 19 | E105: 103 | F105: انثى | G105: (1-3) | H105: مستجد | I105: مسلم | J105: مصرى
A106: 104 | B106: دنيا علاء أحمد عبدالرحيم | C106: 204 | D106: 20 | E106: 104 | F106: انثى | G106: (1-3) | H106: باق | I106: مسلم | J106: مصرى
A107: 105 | B107: دنيا محمد بكرى محمد | C107: 205 | D107: 21 | E107: 105 | F107: انثى | G107: (1-3) | H107: مستجد | I107: مسلم | J107: مصرى
A108: 106 | B108: دينا حسن مصطفى محمود | C108: 206 | D108: 22 | E108: 106 | F108: انثى | G108: (1-3) | H108: مستجد | I108: مسلم | J108: مصرى
A109: 107 | B109: دينا رمضان محمد عثمان | C109: 207 | D109: 23 | E109: 107 | F109: انثى | G109: (1-3) | H109: مستجد | I109: مسلم | J109: مصرى
A110: 108 | B110: دينا عادل عبدالباقي أحمد | C110: 208 | D110: 24 | E110: 108 | F110: انثى | G110: (1-3) | H110: مستجد | I110: مسلم | J110: مصرى
A111: 109 | B111: رباح محمد علي خربطلي | C111: 209 | D111: 25 | E111: 109 | F111: انثى | G111: (1-3) | H111: مستجد | I111: مسلم | J111: مصرى
A112: 110 | B112: رحاب هاشم حسن محمد | C112: 210 | D112: 26 | E112: 110 | F112: انثى | G112: (1-3) | H112: مستجد | I112: مسلم | J112: مصرى
A113: 111 | B113: رشا راضى محمود إبراهيم | C113: 211 | D113: 27 | E113: 111 | F113: انثى | G113: (1-3) | H113: مستجد | I113: مسلم | J113: مصرى
A114: 112 | B114: زهراء رمضان على أبوالحسن | C114: 212 | D114: 28 | E114: 112 | F114: انثى | G114: (1-3) | H114: مستجد | I114: مسلم | J114: مصرى
A115: 113 | B115: زهراء عادل الصافي سباق | C115: 213 | D115: 29 | E115: 113 | F115: انثى | G115: (1-3) | H115: مستجد | I115: مسلم | J115: مصرى
A116: 114 | B116: زينب جاد عبدالحميد جادالكريم | C116: 214 | D116: 30 | E116: 114 | F116: انثى | G116: (1-3) | H116: مستجد | I116: مسلم | J116: مصرى
A117: 115 | B117: زينب صبري طلعات رضوان | C117: 215 | D117: 31 | E117: 115 | F117: انثى | G117: (1-3) | H117: مستجد | I117: مسلم | J117: مصرى
A118: 116 | B118: زينب قنديل الديب فندى | C118: 216 | D118: 32 | E118: 116 | F118: انثى | G118: (1-3) | H118: مستجد | I118: مسلم | J118: مصرى
A119: 117 | B119: ساره رمضان عبداللاه صابر | C119: 217 | D119: 33 | E119: 117 | F119: انثى | G119: (1-3) | H119: مستجد | I119: مسلم | J119: مصرى
A120: 118 | B120: ساميه اشرف حليم كراس | C120: 218 | D120: 34 | E120: 118 | F120: انثى | G120: (1-3) | H120: مستجد | I120: مسيحي | J120: مصرى
A121: 119 | B121: سلمى اشرف احمد عجور | C121: 219 | D121: 35 | E121: 119 | F121: انثى | G121: (1-3) | H121: مستجد | I121: مسلم | J121: مصرى
A122: 120 | B122: سماح صلاح محمد بهلول | C122: 220 | D122: 36 | E122: 120 | F122: انثى | G122: (1-3) | H122: مستجد | I122: مسلم | J122: مصرى
A123: 121 | B123: سمر محروس علي أحمد | C123: 221 | D123: 37 | E123: 121 | F123: انثى | G123: (1-4) | H123: مستجد | I123: مسلم | J123: مصرى
A124: 122 | B124: سوسن عبدالحميد عبدالسميع عابدين | C124: 222 | D124: 38 | E124: 122 | F124: انثى | G124: (1-4) | H124: مستجد | I124: مسلم | J124: مصرى
A125: 123 | B125: شاهنده عباس إبراهيم كامل | C125: 223 | D125: 39 | E125: 123 | F125: انثى | G125: (1-4) | H125: مستجد | I125: مسلم | J125: مصرى
A126: 124 | B126: شاهنده كامل سليم كامل | C126: 224 | D126: 40 | E126: 124 | F126: انثى | G126: (1-4) | H126: مستجد | I126: مسلم | J126: مصرى
A127: 125 | B127: شاهنده محمود محمد فهيم | C127: 225 | D127: 41 | E127: 125 | F127: انثى | G127: (1-4) | H127: مستجد | I127: مسلم | J127: مصرى
A128: 126 | B128: شهيره فراج محمد أحمد | C128: 226 | D128: 42 | E128: 126 | F128: انثى | G128: (1-4) | H128: مستجد | I128: مسلم | J128: مصرى
A129: 127 | B129: شيماء قناوى الضبع جادالكريم | C129: 227 | D129: 43 | E129: 127 | F129: انثى | G129: (1-4) | H129: مستجد | I129: مسلم | J129: مصرى
A130: 128 | B130: عبير أبوالسعود عبدالسميع أبوالحسن | C130: 228 | D130: 44 | E130: 128 | F130: انثى | G130: (1-4) | H130: مستجد | I130: مسلم | J130: مصرى
A131: 129 | B131: عبير عرفات الديب فندي | C131: 229 | D131: 45 | E131: 129 | F131: انثى | G131: (1-4) | H131: مستجد | I131: مسلم | J131: مصرى
A132: 130 | B132: عبير علي أحمد علي | C132: 230 | D132: 46 | E132: 130 | F132: انثى | G132: (1-4) | H132: مستجد | I132: مسلم | J132: مصرى | L132: =DATE(IF(LEFT($K132,1)="2",MID($K132,2,2),"20"&MID($K132,2,2)),MID($K132,4,2),MID($K132,6,2)) -> 
A133: 131 | B133: عليا عبدالمنعم حسن محمد | C133: 231 | D133: 47 | E133: 131 | F133: انثى | G133: (1-4) | H133: مستجد | I133: مسلم | J133: مصرى
A134: 132 | B134: عليا كليب علي خربطلي | C134: 232 | D134: 48 | E134: 132 | F134: انثى | G134: (1-4) | H134: مستجد | I134: مسلم | J134: مصرى
A135: 133 | B135: غدير اشرف حمدى محمد | C135: 233 | D135: 49 | E135: 133 | F135: انثى | G135: (1-4) | H135: مستجد | I135: مسلم | J135: مصرى
A136: 134 | B136: فاطمه رمضان على أبوالحسن | C136: 234 | D136: 50 | E136: 134 | F136: انثى | G136: (1-4) | H136: مستجد | I136: مسلم | J136: مصرى
A137: 135 | B137: فايزه أحمد سليمان محمد | C137: 235 | D137: 51 | E137: 135 | F137: انثى | G137: (1-4) | H137: مستجد | I137: مسلم | J137: مصرى
A138: 136 | B138: فرح علي محمد عبدالمجيد | C138: 236 | D138: 52 | E138: 136 | F138: انثى | G138: (1-4) | H138: مستجد | I138: مسلم | J138: مصرى
A139: 137 | B139: ماري صبري صدقى شنوده | C139: 237 | D139: 53 | E139: 137 | F139: انثى | G139: (1-4) | H139: مستجد | I139: مسيحي | J139: مصرى
A140: 138 | B140: محبات معتمد كليب صادق | C140: 238 | D140: 54 | E140: 138 | F140: انثى | G140: (1-4) | H140: مستجد | I140: مسلم | J140: مصرى
A141: 139 | B141: مروه عامر كليب صادق | C141: 239 | D141: 55 | E141: 139 | F141: انثى | G141: (1-4) | H141: مستجد | I141: مسلم | J141: مصرى
A142: 140 | B142: مروه عمر محمود عجور | C142: 240 | D142: 56 | E142: 140 | F142: انثى | G142: (1-4) | H142: مستجد | I142: مسلم | J142: مصرى
A143: 141 | B143: مروه محمد صدقي عبداللطيف | C143: 241 | D143: 57 | E143: 141 | F143: انثى | G143: (1-4) | H143: مستجد | I143: مسلم | J143: مصرى
A144: 142 | B144: مروه محمود عبدالعظيم محمد | C144: 242 | D144: 58 | E144: 142 | F144: انثى | G144: (1-4) | H144: مستجد | I144: مسلم | J144: مصرى
A145: 143 | B145: مريم عاطف عبدالله جبرائيل | C145: 243 | D145: 59 | E145: 143 | F145: انثى | G145: (1-4) | H145: مستجد | I145: مسيحي | J145: مصرى
A146: 144 | B146: مريم عبدالحميد رضوان توفيق | C146: 244 | D146: 60 | E146: 144 | F146: انثى | G146: (1-4) | H146: مستجد | I146: مسلم | J146: مصرى
A147: 145 | B147: مريم عبدالحميد محمود عبدالمطلب | C147: 245 | D147: 61 | E147: 145 | F147: انثى | G147: (1-4) | H147: مستجد | I147: مسلم | J147: مصرى
A148: 146 | B148: مريم محمد محمود أحمد | C148: 246 | D148: 62 | E148: 146 | F148: انثى | G148: (1-4) | H148: مستجد | I148: مسلم | J148: مصرى
A149: 147 | B149: مشيره أحمد محمد حفنى | C149: 247 | D149: 63 | E149: 147 | F149: انثى | G149: (1-4) | H149: مستجد | I149: مسلم | J149: مصرى
A150: 148 | B150: ملك عبدالناصر محمود أحمد | C150: 248 | D150: 64 | E150: 148 | F150: انثى | G150: (1-4) | H150: مستجد | I150: مسلم | J150: مصرى
A151: 149 | B151: منار السيد أحمد صديق | C151: 249 | D151: 65 | E151: 149 | F151: انثى | G151: (1-4) | H151: مستجد | I151: مسلم | J151: مصرى
A152: 150 | B152: منار أبوالعلاء عبداللطيف موسى | C152: 250 | D152: 66 | E152: 150 | F152: انثى | G152: (1-4) | H152: مستجد | I152: مسلم | J152: مصرى
A153: 151 | B153: منار أحمد عبدالحميد عبدالباسط | C153: 251 | D153: 67 | E153: 151 | F153: انثى | G153: (1-4) | H153: مستجد | I153: مسلم | J153: مصرى
A154: 152 | B154: منار عباس عبدالباقي أحمد | C154: 252 | D154: 68 | E154: 152 | F154: انثى | G154: (1-4) | H154: مستجد | I154: مسلم | J154: مصرى
A155: 153 | B155: منه كحلاوي محمد الصالح | C155: 253 | D155: 69 | E155: 153 | F155: انثى | G155: (1-4) | H155: مستجد | I155: مسلم | J155: مصرى
A156: 154 | B156: ندا بسيوني مهران محمد | C156: 254 | D156: 70 | E156: 154 | F156: انثى | G156: (1-4) | H156: مستجد | I156: مسلم | J156: مصرى
A157: 155 | B157: نصره قناوي صلاح عبداللاه | C157: 255 | D157: 71 | E157: 155 | F157: انثى | G157: (1-4) | H157: مستجد | I157: مسلم | J157: مصرى
A158: 156 | B158: نهال خليفة كامل احمد | C158: 256 | D158: 72 | E158: 156 | F158: انثى | G158: (1-4) | H158: مستجد | I158: مسلم | J158: مصرى
A159: 157 | B159: نهال محمدكيلاني كيلاني محمد | C159: 257 | D159: 73 | E159: 157 | F159: انثى | G159: (1-4) | H159: مستجد | I159: مسلم | J159: مصرى
A160: 158 | B160: نورا قاعود حمدي أحمد | C160: 258 | D160: 74 | E160: 158 | F160: انثى | G160: (1-4) | H160: مستجد | I160: مسلم | J160: مصرى
A161: 159 | B161: نورهان عصام حمدان مصطفى | C161: 259 | D161: 75 | E161: 159 | F161: انثى | G161: (1-4) | H161: مستجد | I161: مسلم | J161: مصرى
A162: 160 | B162: نيجار رفاعى محمد أحمد | C162: 260 | D162: 76 | E162: 160 | F162: انثى | G162: (1-4) | H162: مستجد | I162: مسلم | J162: مصرى
A163: 161 | B163: هاجر عيد احمد عبدالمولى | C163: 261 | D163: 77 | E163: 161 | F163: انثى | G163: (1-4) | H163: مستجد | I163: مسلم | J163: مصرى
A164: 162 | B164: هبه حمدي فهيم برعي | C164: 262 | D164: 78 | E164: 162 | F164: انثى | G164: (1-4) | H164: مستجد | I164: مسلم | J164: مصرى
A165: 163 | B165: هويدا عبدالحميد العربي عبدلي | C165: 263 | D165: 79 | E165: 163 | F165: انثى | G165: (1-4) | H165: مستجد | I165: مسلم | J165: مصرى
A166: 164 | B166: ياسمين أبوالعلا محمد عبداللاه | C166: 264 | D166: 80 | E166: 164 | F166: انثى | G166: (1-4) | H166: مستجد | I166: مسلم | J166: مصرى
A167: 165 | B167: ياسمين بلال محمد شاكر | C167: 265 | D167: 81 | E167: 165 | F167: انثى | G167: (1-4) | H167: مستجد | I167: مسلم | J167: مصرى
A168: 166 | B168: ياسمين رجب فهيم عبدالعاطى | C168: 266 | D168: 82 | E168: 166 | F168: انثى | G168: (1-4) | H168: مستجد | I168: مسلم | J168: مصرى
A169: 167 | B169: ياسمين عبدالفضيل طلب حسن | C169: 267 | D169: 83 | E169: 167 | F169: انثى | G169: (1-4) | H169: مستجد | I169: مسلم | J169: مصرى
A170: 168 | B170: أم هاشم عبدالراضي علي محمد | C170: 268 | D170: 84 | E170: 168 | F170: انثى | G170: منازل | H170: منازل | I170: مسلم | J170: مصرى
A171: 169 | B171: ايمان عبدالراضي السيد سالمان | C171: 269 | D171: 85 | E171: 169 | F171: انثى | G171: منازل | H171: منازل | I171: مسلم | J171: مصرى

Sheet الصف الثاني
B1: الصف الثاني الاعدادي
A2: م | B2: الاسم | C2: رقم الجلوس | D2: سري أول | E2: سري ثان
A3: 1 | B3: ابراهيم بهجت حمدى مدنى | C3: 401 | D3: 263 | E3: 170 | F3: منقول | G3: مسلم | H3: مصرى | I3: 1 | K3: ابراهيم بهجت حمدى مدنى | L3: =DATE(IF(LEFT($J3,1)="2",MID($J3,2,2),"20"&MID($J3,2,2)),MID($J3,4,2),MID($J3,6,2)) -> 
A4: 2 | B4: ابراهيم على ابراهيم احمد | C4: 402 | D4: 264 | E4: 171 | F4: منقول | G4: مسلم | H4: مصرى | I4: 1 | K4: ابراهيم على ابراهيم احمد | L4: =DATE(IF(LEFT($J4,1)="2",MID($J4,2,2),"20"&MID($J4,2,2)),MID($J4,4,2),MID($J4,6,2)) -> 
A5: 3 | B5: ابراهيم محروس عجور عبدالنبى | C5: 403 | D5: 265 | E5: 172 | F5: منقول | G5: مسلم | H5: مصرى | I5: 1 | K5: ابراهيم محروس عجور عبدالنبى
A6: 4 | B6: ابراهيم نصري العبد طلب | C6: 404 | D6: 266 | E6: 173 | F6: منقول | G6: مسلم | H6: مصرى | I6: 1 | K6: ابراهيم نصري العبد طلب
A7: 5 | B7: احمد حسن فوزي ابراهيم | C7: 405 | D7: 267 | E7: 174 | F7: منقول | G7: مسلم | H7: مصرى | I7: 1 | K7: احمد حسن فوزي ابراهيم
A8: 6 | B8: احمد حسن محمود طلب | C8: 406 | D8: 268 | E8: 175 | F8: منقول | G8: مسلم | H8: مصرى | I8: 1 | K8: احمد حسن محمود طلب
A9: 7 | B9: احمد حمد فتحى احمد | C9: 407 | D9: 269 | E9: 176 | F9: منقول | G9: مسلم | H9: مصرى | I9: 1 | K9: احمد حمد فتحى احمد
A10: 8 | B10: احمد رفاعى فوزى احمد | C10: 408 | D10: 270 | E10: 177 | F10: منقول | G10: مسلم | H10: مصرى | I10: 1 | K10: احمد رفاعى فوزى احمد
A11: 9 | B11: احمد عبدالعال كيلانى محمد | C11: 409 | D11: 271 | E11: 178 | F11: منقول | G11: مسلم | H11: مصرى | I11: 1 | K11: احمد عبدالعال كيلانى محمد
A12: 10 | B12: احمد عبدالناصر عبده على | C12: 410 | D12: 272 | E12: 179 | F12: منقول | G12: مسلم | H12: مصرى | I12: 1 | K12: احمد عبدالناصر عبده على
A13: 11 | B13: احمد عبده محمود طلب | C13: 411 | D13: 273 | E13: 180 | F13: منقول | G13: مسلم | H13: مصرى | I13: 1 | K13: احمد عبده محمود طلب
A14: 12 | B14: احمد على محمد طلب | C14: 412 | D14: 274 | E14: 181 | F14: منقول | G14: مسلم | H14: مصرى | I14: 1 | K14: احمد على محمد طلب
A15: 13 | B15: احمد فريد على احمد | C15: 413 | D15: 275 | E15: 182 | F15: منقول | G15: مسلم | H15: مصرى | I15: 1 | K15: احمد فريد على احمد
A16: 14 | B16: احمد كرم تغيان بديوي | C16: 414 | D16: 276 | E16: 183 | F16: منقول | G16: مسلم | H16: مصرى | I16: 1 | K16: احمد كرم تغيان بديوي
A17: 15 | B17: ادهم حماده حمدان عباس | C17: 415 | D17: 277 | E17: 184 | F17: منقول | G17: مسلم | H17: مصرى | I17: 1 | K17: ادهم حماده حمدان عباس
A18: 16 | B18: اسامه على مهدى السيد | C18: 416 | D18: 278 | E18: 185 | F18: منقول | G18: مسلم | H18: مصرى | I18: 1 | K18: اسامه على مهدى السيد
A19: 17 | B19: اسلام حامد عبدالحميد حسن | C19: 417 | D19: 279 | E19: 186 | F19: منقول | G19: مسلم | H19: مصرى | I19: 1 | K19: اسلام حامد عبدالحميد حسن
A20: 18 | B20: اسلام رفاعى محمد احمد | C20: 418 | D20: 280 | E20: 187 | F20: منقول | G20: مسلم | H20: مصرى | I20: 1 | K20: اسلام رفاعى محمد احمد
A21: 19 | B21: اشرف معتمد كليب صادق | C21: 419 | D21: 281 | E21: 188 | F21: منقول | G21: مسلم | H21: مصرى | I21: 1 | K21: اشرف معتمد كليب صادق
A22: 20 | B22: الشريف جمال محمد فندي | C22: 420 | D22: 282 | E22: 189 | F22: منقول | G22: مسلم | H22: مصرى | I22: 1 | K22: الشريف جمال محمد فندي
A23: 21 | B23: ايمن معتمد كليب صادق | C23: 421 | D23: 283 | E23: 190 | F23: منقول | G23: مسلم | H23: مصرى | I23: 1 | K23: ايمن معتمد كليب صادق
A24: 22 | B24: حامد عمار سعدالدين ابراهيم | C24: 422 | D24: 284 | E24: 191 | F24: منقول | G24: مسلم | H24: مصرى | I24: 1 | K24: حامد عمار سعدالدين ابراهيم
A25: 23 | B25: حسن احمد حمدى قايد | C25: 423 | D25: 285 | E25: 192 | F25: منقول | G25: مسلم | H25: مصرى | I25: 1 | K25: حسن احمد حمدى قايد
A26: 24 | B26: حماده عبدالخالق محمد ابوالفضل | C26: 424 | D26: 286 | E26: 193 | F26: منقول | G26: مسلم | H26: مصرى | I26: 1 | K26: حماده عبدالخالق محمد ابوالفضل
A27: 25 | B27: حمدي ياسر زهران عبدالنبي | C27: 425 | D27: 287 | E27: 194 | F27: منقول | G27: مسلم | H27: مصرى | I27: 2 | K27: حمدي ياسر زهران عبدالنبي
A28: 26 | B28: حناوي عبدالرحيم محمود عبدالرحيم | C28: 426 | D28: 288 | E28: 195 | F28: منقول | G28: مسلم | H28: مصرى | I28: 2 | K28: حناوي عبدالرحيم محمود عبدالرحيم
A29: 27 | B29: خالد جمال عبدالعليم عجور | C29: 427 | D29: 289 | E29: 196 | F29: منقول | G29: مسلم | H29: مصرى | I29: 2 | K29: خالد جمال عبدالعليم عجور
A30: 28 | B30: خالد رمضان فهيم عبدالعاطي | C30: 428 | D30: 290 | E30: 197 | F30: منقول | G30: مسلم | H30: مصرى | I30: 2 | K30: خالد رمضان فهيم عبدالعاطي
A31: 29 | B31: ربيع محمود الديب احمد | C31: 429 | D31: 291 | E31: 198 | F31: منقول | G31: مسلم | H31: مصرى | I31: 2 | K31: ربيع محمود الديب احمد
A32: 30 | B32: زياد ايمن مصطفى مرسى | C32: 430 | D32: 292 | E32: 199 | F32: منقول | G32: مسلم | H32: مصرى | I32: 2 | K32: زياد ايمن مصطفى مرسى
A33: 31 | B33: سليم عبدالشافى سليم كامل | C33: 431 | D33: 293 | E33: 200 | F33: منقول | G33: مسلم | H33: مصرى | I33: 2 | K33: سليم عبدالشافى سليم كامل
A34: 32 | B34: سليمان عطا نورالدين سليمان | C34: 432 | D34: 294 | E34: 201 | F34: منقول | G34: مسلم | H34: مصرى | I34: 2 | K34: سليمان عطا نورالدين سليمان
A35: 33 | B35: صديق عباس شبيب على | C35: 433 | D35: 295 | E35: 202 | F35: منقول | G35: مسلم | H35: مصرى | I35: 2 | K35: صديق عباس شبيب على
A36: 34 | B36: طارق السيد محمد راضى | C36: 434 | D36: 296 | E36: 203 | F36: منقول | G36: مسلم | H36: مصرى | I36: 2 | K36: طارق السيد محمد راضى
A37: 35 | B37: طلال الصدام كليب على | C37: 435 | D37: 297 | E37: 204 | F37: منقول | G37: مسلم | H37: مصرى | I37: 2 | K37: طلال الصدام كليب على
A38: 36 | B38: طه عبدالشافي يوسف أحمد | C38: 436 | D38: 298 | E38: 205 | F38: منقول | G38: مسلم | H38: مصرى | I38: 2 | K38: طه عبدالشافي يوسف أحمد
A39: 37 | B39: عابدين عبدالرحيم محمود عبدالرحيم | C39: 437 | D39: 299 | E39: 206 | F39: منقول | G39: مسلم | H39: مصرى | I39: 2 | K39: عابدين عبدالرحيم محمود عبدالرحيم
A40: 38 | B40: عبدالحميد على عبدالحميد على | C40: 438 | D40: 300 | E40: 207 | F40: منقول | G40: مسلم | H40: مصرى | I40: 2 | K40: عبدالحميد على عبدالحميد على
A41: 39 | B41: عبدالرحمن محمود تغيان بديوي | C41: 439 | D41: 301 | E41: 208 | F41: منقول | G41: مسلم | H41: مصرى | I41: 2 | K41: عبدالرحمن محمود تغيان بديوي
A42: 40 | B42: عبدالله جابر مصطفى النادى أحمد | C42: 440 | D42: 302 | E42: 209 | F42: منقول | G42: مسلم | H42: مصرى | I42: 2 | K42: عبدالله جابر مصطفى النادى أحمد
A43: 41 | B43: عصام احمد عبدالرحيم محمد | C43: 441 | D43: 303 | E43: 210 | F43: منقول | G43: مسلم | H43: مصرى | I43: 2 | K43: عصام احمد عبدالرحيم محمد
A44: 42 | B44: علاء جلال السيد جادالكريم | C44: 442 | D44: 304 | E44: 211 | F44: منقول | G44: مسلم | H44: مصرى | I44: 2 | K44: علاء جلال السيد جادالكريم
A45: 43 | B45: علاء نصرالدين احمد على | C45: 443 | D45: 305 | E45: 212 | F45: منقول | G45: مسلم | H45: مصرى | I45: 2 | K45: علاء نصرالدين احمد على
A46: 44 | B46: علام عنتر محمود عبدالمطلب | C46: 444 | D46: 306 | E46: 213 | F46: منقول | G46: مسلم | H46: مصرى | I46: 2 | K46: علام عنتر محمود عبدالمطلب
A47: 45 | B47: على اشرف محمد محمود | C47: 445 | D47: 307 | E47: 214 | F47: منقول | G47: مسلم | H47: مصرى | I47: 2 | K47: على اشرف محمد محمود
A48: 46 | B48: على حمدى على محمود | C48: 446 | D48: 308 | E48: 215 | F48: منقول | G48: مسلم | H48: مصرى | I48: 2 | K48: على حمدى على محمود
A49: 47 | B49: على رفاعى على محمود | C49: 447 | D49: 309 | E49: 216 | F49: منقول | G49: مسلم | H49: مصرى | I49: 2 | K49: على رفاعى على محمود
A50: 48 | B50: على فراج حمدى عباس | C50: 448 | D50: 310 | E50: 217 | F50: منقول | G50: مسلم | H50: مصرى | I50: 3 | K50: على فراج حمدى عباس
A51: 49 | B51: على مؤمن كليب على | C51: 449 | D51: 311 | E51: 218 | F51: منقول | G51: مسلم | H51: مصرى | I51: 3 | K51: على مؤمن كليب على
A52: 50 | B52: علي جمال ابوالعلا بدوي | C52: 450 | D52: 312 | E52: 219 | F52: منقول | G52: مسلم | H52: مصرى | I52: 3 | K52: علي جمال ابوالعلا بدوي
A53: 51 | B53: عماد حمدى صدقي عبداللطيف | C53: 451 | D53: 313 | E53: 220 | F53: منقول | G53: مسلم | H53: مصرى | I53: 3 | K53: عماد حمدى صدقي عبداللطيف
A54: 52 | B54: عماد عاطف عبدالعليم عوض | C54: 452 | D54: 314 | E54: 221 | F54: منقول | G54: مسلم | H54: مصرى | I54: 3 | K54: عماد عاطف عبدالعليم عوض
A55: 53 | B55: عماد يونس الصغير أحمد | C55: 453 | D55: 315 | E55: 222 | F55: منقول | G55: مسلم | H55: مصرى | I55: 3 | K55: عماد يونس الصغير أحمد
A56: 54 | B56: عمر السيد محمد السيد | C56: 454 | D56: 316 | E56: 223 | F56: منقول | G56: مسلم | H56: مصرى | I56: 3 | K56: عمر السيد محمد السيد
A57: 55 | B57: عمر أحمد كليب على | C57: 455 | D57: 317 | E57: 224 | F57: منقول | G57: مسلم | H57: مصرى | I57: 3 | K57: عمر أحمد كليب على
A58: 56 | B58: فادى يسرى بخيت جرجس | C58: 456 | D58: 318 | E58: 225 | F58: منقول | G58: مسيحي | H58: مصرى | I58: 3 | K58: فادى يسرى بخيت جرجس
A59: 57 | B59: فريد حسن عبدالظاهر عبدالنبى | C59: 457 | D59: 319 | E59: 226 | F59: منقول | G59: مسلم | H59: مصرى | I59: 3 | K59: فريد حسن عبدالظاهر عبدالنبى
A60: 58 | B60: فوزى عثمان فوزى عثمان | C60: 458 | D60: 320 | E60: 227 | F60: منقول | G60: مسلم | H60: مصرى | I60: 3 | K60: فوزى عثمان فوزى عثمان
A61: 59 | B61: كريم ابراهيم عبداللطيف رضا | C61: 459 | D61: 321 | E61: 228 | F61: منقول | G61: مسلم | H61: مصرى | I61: 3 | K61: كريم ابراهيم عبداللطيف رضا
A62: 60 | B62: كريم أحمد إسماعيل أحمد | C62: 460 | D62: 322 | E62: 229 | F62: منقول | G62: مسلم | H62: مصرى | I62: 3 | K62: كريم أحمد إسماعيل أحمد
A63: 61 | B63: كريم خيرى فاضل رضوان | C63: 461 | D63: 323 | E63: 230 | F63: منقول | G63: مسلم | H63: مصرى | I63: 3 | K63: كريم خيرى فاضل رضوان
A64: 62 | B64: كريم عاطف أحمد شاكر | C64: 462 | D64: 324 | E64: 231 | F64: منقول | G64: مسلم | H64: مصرى | I64: 3 | K64: كريم عاطف أحمد شاكر
A65: 63 | B65: مجدى حمدى محمد حسن | C65: 463 | D65: 325 | E65: 232 | F65: منقول | G65: مسلم | H65: مصرى | I65: 3 | K65: مجدى حمدى محمد حسن
A66: 64 | B66: محمد اشرف عبدالحميد رضا | C66: 464 | D66: 326 | E66: 233 | F66: منقول | G66: مسلم | H66: مصرى | I66: 3 | K66: محمد اشرف عبدالحميد رضا
A67: 65 | B67: محمد خلف مدنى حسب | C67: 465 | D67: 327 | E67: 234 | F67: منقول | G67: مسلم | H67: مصرى | I67: 3 | K67: محمد خلف مدنى حسب
A68: 66 | B68: محمد رفاعى ابوالمجد صادق | C68: 466 | D68: 328 | E68: 235 | F68: منقول | G68: مسلم | H68: مصرى | I68: 3 | K68: محمد رفاعى ابوالمجد صادق | L68: =DATE(IF(LEFT($J68,1)="2",MID($J68,2,2),"20"&MID($J68,2,2)),MID($J68,4,2),MID($J68,6,2)) -> 
A69: 67 | B69: محمد صبره عبدالرحيم عبداللطيف | C69: 467 | D69: 329 | E69: 236 | F69: منقول | G69: مسلم | H69: مصرى | I69: 3 | K69: محمد صبره عبدالرحيم عبداللطيف
A70: 68 | B70: محمد صديق عبدالعليم مصطفى | C70: 468 | D70: 330 | E70: 237 | F70: منقول | G70: مسلم | H70: مصرى | I70: 3 | K70: محمد صديق عبدالعليم مصطفى
A71: 69 | B71: محمد عاطف زهمول محمد | C71: 469 | D71: 331 | E71: 238 | F71: منقول | G71: مسلم | H71: مصرى | I71: 3 | K71: محمد عاطف زهمول محمد
A72: 70 | B72: محمد عبدالعال محمود عبدالعال | C72: 470 | D72: 332 | E72: 239 | F72: منقول | G72: مسلم | H72: مصرى | I72: 3 | K72: محمد عبدالعال محمود عبدالعال
A73: 71 | B73: محمد عبدالمجيد صديق عبدالمجيد | C73: 471 | D73: 333 | E73: 240 | F73: منقول | G73: مسلم | H73: مصرى | I73: 4 | K73: محمد عبدالمجيد صديق عبدالمجيد
A74: 72 | B74: محمد عبدالمؤمن عيد محمد | C74: 472 | D74: 334 | E74: 241 | F74: منقول | G74: مسلم | H74: مصرى | I74: 4 | K74: محمد عبدالمؤمن عيد محمد
A75: 73 | B75: محمد عبدالنعيم عبدالمنعم احمد | C75: 473 | D75: 335 | E75: 242 | F75: منقول | G75: مسلم | H75: مصرى | I75: 4 | K75: محمد عبدالنعيم عبدالمنعم احمد
A76: 74 | B76: محمد عطيه احمد صديق | C76: 474 | D76: 336 | E76: 243 | F76: منقول | G76: مسلم | H76: مصرى | I76: 4 | K76: محمد عطيه احمد صديق
A77: 75 | B77: محمد على كمال عبدالمجيد | C77: 475 | D77: 337 | E77: 244 | F77: منقول | G77: مسلم | H77: مصرى | I77: 4 | K77: محمد على كمال عبدالمجيد
A78: 76 | B78: محمد ناصر محمود زيدان | C78: 476 | D78: 338 | E78: 245 | F78: منقول | G78: مسلم | H78: مصرى | I78: 4 | K78: محمد ناصر محمود زيدان
A79: 77 | B79: محمود حسين محمود عوض | C79: 477 | D79: 339 | E79: 246 | F79: منقول | G79: مسلم | H79: مصرى | I79: 4 | K79: محمود حسين محمود عوض
A80: 78 | B80: محمود عبده عبدالراضى امين | C80: 478 | D80: 340 | E80: 247 | F80: منقول | G80: مسلم | H80: مصرى | I80: 4 | K80: محمود عبده عبدالراضى امين
A81: 79 | B81: مصطفى الشبراوي عبده علي | C81: 479 | D81: 341 | E81: 248 | F81: منقول | G81: مسلم | H81: مصرى | I81: 4 | K81: مصطفى الشبراوي عبده علي
A82: 80 | B82: منصور بكير الديب فندى | C82: 480 | D82: 342 | E82: 249 | F82: منقول | G82: مسلم | H82: مصرى | I82: 4 | K82: منصور بكير الديب فندى
A83: 81 | B83: مينا عدلى عبده ميخائيل | C83: 481 | D83: 343 | E83: 250 | F83: منقول | G83: مسيحي | H83: مصرى | I83: 4 | K83: مينا عدلى عبده ميخائيل
A84: 82 | B84: يوسف شعبان محمد على | C84: 482 | D84: 344 | E84: 251 | F84: منقول | G84: مسلم | H84: مصرى | I84: 4 | K84: يوسف شعبان محمد على
A85: 83 | B85: يوسف على كمال حسونه | C85: 483 | D85: 345 | E85: 252 | F85: منقول | G85: مسلم | H85: مصرى | I85: 4 | K85: يوسف على كمال حسونه
A86: 84 | B86: احلام عبدالشافى عبدالحميد على | C86: 484 | D86: 346 | E86: 253 | F86: منقول | G86: مسلم | H86: مصرى | I86: 4 | K86: احلام عبدالشافى عبدالحميد على
A87: 85 | B87: اسراء محمود صابر حسين | C87: 485 | D87: 347 | E87: 254 | F87: منقول | G87: مسلم | H87: مصرى | I87: 4 | K87: اسراء محمود صابر حسين
A88: 86 | B88: اسراء هلال فاضل رضوان | C88: 486 | D88: 348 | E88: 255 | F88: منقول | G88: مسلم | H88: مصرى | I88: 4 | K88: اسراء هلال فاضل رضوان
A89: 87 | B89: اسماء عاشور محمد فايز | C89: 487 | D89: 349 | E89: 256 | F89: منقول | G89: مسلم | H89: مصرى | I89: 4 | K89: اسماء عاشور محمد فايز
A90: 88 | B90: اسماء ناصر كليب صادق | C90: 488 | D90: 350 | E90: 257 | F90: منقول | G90: مسلم | H90: مصرى | I90: 4 | K90: اسماء ناصر كليب صادق
A91: 89 | B91: امل سلامه فتحى عبدالموجود | C91: 489 | D91: 351 | E91: 258 | F91: منقول | G91: مسلم | H91: مصرى | I91: 4 | K91: امل سلامه فتحى عبدالموجود
A92: 90 | B92: امل عبدالرؤف مسعد احمد | C92: 490 | D92: 352 | E92: 259 | F92: منقول | G92: مسلم | H92: مصرى | I92: 4 | K92: امل عبدالرؤف مسعد احمد
A93: 91 | B93: امل عبدالنظير طلب حسن | C93: 491 | D93: 353 | E93: 260 | F93: منقول | G93: مسلم | H93: مصرى | I93: 4 | K93: امل عبدالنظير طلب حسن
A94: 92 | B94: امل محمود يونس محمد | C94: 492 | D94: 354 | E94: 261 | F94: منقول | G94: مسلم | H94: مصرى | I94: 4 | K94: امل محمود يونس محمد
A95: 93 | B95: امنيه شحاته السبع جادالكريم | C95: 493 | D95: 170 | E95: 262 | F95: باق | G95: مسلم | H95: مصرى | I95: 4 | K95: امنيه شحاته السبع جادالكريم
A96: 94 | B96: اميره عاطف مهدى السيد | C96: 494 | D96: 171 | E96: 263 | F96: منقول | G96: مسلم | H96: مصرى | I96: 5 | K96: اميره عاطف مهدى السيد
A97: 95 | B97: انوار اسعد الديب فندى | C97: 495 | D97: 172 | E97: 264 | F97: منقول | G97: مسلم | H97: مصرى | I97: 5 | K97: انوار اسعد الديب فندى
A98: 96 | B98: ايمان احمد عبدالصبور حسين | C98: 496 | D98: 173 | E98: 265 | F98: منقول | G98: مسلم | H98: مصرى | I98: 5 | K98: ايمان احمد عبدالصبور حسين
A99: 97 | B99: ايمان اسعد احمد زيدان | C99: 497 | D99: 174 | E99: 266 | F99: منقول | G99: مسلم | H99: مصرى | I99: 5 | K99: ايمان اسعد احمد زيدان
A100: 98 | B100: ايه السيد محمد عبدالحي | C100: 498 | D100: 175 | E100: 267 | F100: منقول | G100: مسلم | H100: مصرى | I100: 5 | K100: ايه السيد محمد عبدالحي
A101: 99 | B101: ايه خلف احمد حسن | C101: 499 | D101: 176 | E101: 268 | F101: منقول | G101: مسلم | H101: مصرى | I101: 5 | K101: ايه خلف احمد حسن
A102: 100 | B102: ايه محمد ذكى ابوالمجد | C102: 500 | D102: 177 | E102: 269 | F102: منقول | G102: مسلم | H102: مصرى | I102: 5 | K102: ايه محمد ذكى ابوالمجد
A103: 101 | B103: حسناء كمال احمد صادق | C103: 501 | D103: 178 | E103: 270 | F103: منقول | G103: مسلم | H103: مصرى | I103: 5 | K103: حسناء كمال احمد صادق
A104: 102 | B104: حنان شبيب الديب متندى | C104: 502 | D104: 179 | E104: 271 | F104: منقول | G104: مسلم | H104: مصرى | I104: 5 | K104: حنان شبيب الديب متندى
A105: 103 | B105: حنان فراج عبدالكريم على | C105: 503 | D105: 180 | E105: 272 | F105: منقول | G105: مسلم | H105: مصرى | I105: 5 | K105: حنان فراج عبدالكريم على
A106: 104 | B106: خلود أشرف السيد عوض | C106: 504 | D106: 181 | E106: 273 | F106: منقول | G106: مسلم | H106: مصرى | I106: 5 | K106: خلود أشرف السيد عوض
A107: 105 | B107: داليا سالم عبدالعليم محمد | C107: 505 | D107: 182 | E107: 274 | F107: منقول | G107: مسلم | H107: مصرى | I107: 5 | K107: داليا سالم عبدالعليم محمد
A108: 106 | B108: داليا هلال عبدالحميد احمد | C108: 506 | D108: 183 | E108: 275 | F108: منقول | G108: مسلم | H108: مصرى | I108: 5 | K108: داليا هلال عبدالحميد احمد
A109: 107 | B109: دعاء الوهجانى احمد عبدالمجيد | C109: 507 | D109: 184 | E109: 276 | F109: منقول | G109: مسلم | H109: مصرى | I109: 5 | K109: دعاء الوهجانى احمد عبدالمجيد
A110: 108 | B110: دعاء ناجح حشمت احمد | C110: 508 | D110: 185 | E110: 277 | F110: منقول | G110: مسلم | H110: مصرى | I110: 5 | K110: دعاء ناجح حشمت احمد
A111: 109 | B111: دنيا الصدام كليب على | C111: 509 | D111: 186 | E111: 278 | F111: منقول | G111: مسلم | H111: مصرى | I111: 5 | K111: دنيا الصدام كليب على
A112: 110 | B112: دنيا حسني فهلي محمد | C112: 510 | D112: 187 | E112: 279 | F112: منقول | G112: مسلم | H112: مصرى | I112: 5 | K112: دنيا حسني فهلي محمد
A113: 111 | B113: دنيا حماده محمود احمد | C113: 511 | D113: 188 | E113: 280 | F113: منقول | G113: مسلم | H113: مصرى | I113: 5 | K113: دنيا حماده محمود احمد
A114: 112 | B114: دنيا محمود قنعاوى مدنى | C114: 512 | D114: 189 | E114: 281 | F114: منقول | G114: مسلم | H114: مصرى | I114: 5 | K114: دنيا محمود قنعاوى مدنى
A115: 113 | B115: دينا بكرى النحاس عباس | C115: 513 | D115: 190 | E115: 282 | F115: منقول | G115: مسلم | H115: مصرى | I115: 5 | K115: دينا بكرى النحاس عباس
A116: 114 | B116: ذكرى عبدالله حشمت عبدلى | C116: 514 | D116: 191 | E116: 283 | F116: منقول | G116: مسلم | H116: مصرى | I116: 5 | K116: ذكرى عبدالله حشمت عبدلى
A117: 115 | B117: رانيا ويصا سمير عزيز | C117: 515 | D117: 192 | E117: 284 | F117: منقول | G117: مسيحي | H117: مصرى | I117: 5 | K117: رانيا ويصا سمير عزيز
A118: 116 | B118: رحاب أحمد محمد محمود | C118: 516 | D118: 193 | E118: 285 | F118: منقول | G118: مسلم | H118: مصرى | I118: 5 | K118: رحاب أحمد محمد محمود
A119: 117 | B119: رحاب بدوى محمد فرج | C119: 517 | D119: 194 | E119: 286 | F119: منقول | G119: مسلم | H119: مصرى | I119: 6 | K119: رحاب بدوى محمد فرج
A120: 118 | B120: رحاب حسن حمدى عجور | C120: 518 | D120: 195 | E120: 287 | F120: منقول | G120: مسلم | H120: مصرى | I120: 6 | K120: رحاب حسن حمدى عجور
A121: 119 | B121: رفاء محمد شاكر ابراهيم | C121: 519 | D121: 196 | E121: 288 | F121: منقول | G121: مسلم | H121: مصرى | I121: 6 | K121: رفاء محمد شاكر ابراهيم
A122: 120 | B122: رقيه بهجت ابراهيم عبدالحميد | C122: 520 | D122: 197 | E122: 289 | F122: منقول | G122: مسلم | H122: مصرى | I122: 6 | K122: رقيه بهجت ابراهيم عبدالحميد
A123: 121 | B123: ساره محمد صابر عبداللطيف | C123: 521 | D123: 198 | E123: 290 | F123: منقول | G123: مسلم | H123: مصرى | I123: 6 | K123: ساره محمد صابر عبداللطيف
A124: 122 | B124: ساميه محمود محمد محمد | C124: 522 | D124: 199 | E124: 291 | F124: منقول | G124: مسلم | H124: مصرى | I124: 6 | K124: ساميه محمود محمد محمد
A125: 123 | B125: سحرا على محمد طلب | C125: 523 | D125: 200 | E125: 292 | F125: منقول | G125: مسلم | H125: مصرى | I125: 6 | K125: سحرا على محمد طلب
A126: 124 | B126: سمر بسيوني علي محمود | C126: 524 | D126: 201 | E126: 293 | F126: منقول | G126: مسلم | H126: مصرى | I126: 6 | K126: سمر بسيوني علي محمود
A127: 125 | B127: سهير عبدالخالق على محمد | C127: 525 | D127: 202 | E127: 294 | F127: منقول | G127: مسلم | H127: مصرى | I127: 6 | K127: سهير عبدالخالق على محمد
A128: 126 | B128: سهير محمد أبوالحمد أحمد | C128: 526 | D128: 203 | E128: 295 | F128: منقول | G128: مسلم | H128: مصرى | I128: 6 | K128: سهير محمد أبوالحمد أحمد
A129: 127 | B129: شاهندا عاطف رشاد توفيق | C129: 527 | D129: 204 | E129: 296 | F129: منقول | G129: مسلم | H129: مصرى | I129: 6 | K129: شاهندا عاطف رشاد توفيق
A130: 128 | B130: شيرين شبيب عبدالراضى امين | C130: 528 | D130: 205 | E130: 297 | F130: منقول | G130: مسلم | H130: مصرى | I130: 6 | K130: شيرين شبيب عبدالراضى امين
A131: 129 | B131: شيرين محمد عبدالعزيز ابراهيم | C131: 529 | D131: 206 | E131: 298 | F131: منقول | G131: مسلم | H131: مصرى | I131: 6 | K131: شيرين محمد عبدالعزيز ابراهيم
A132: 130 | B132: شيماء الوهجانى احمد عبدالمجيد | C132: 530 | D132: 207 | E132: 299 | F132: منقول | G132: مسلم | H132: مصرى | I132: 6 | K132: شيماء الوهجانى احمد عبدالمجيد | L132: =DATE(IF(LEFT($J132,1)="2",MID($J132,2,2),"20"&MID($J132,2,2)),MID($J132,4,2),MID($J132,6,2)) -> 
A133: 131 | B133: شيماء عبدالحميد محمود محمد | C133: 531 | D133: 208 | E133: 300 | F133: منقول | G133: مسلم | H133: مصرى | I133: 6 | K133: شيماء عبدالحميد محمود محمد
A134: 132 | B134: شيماء عبدالراضى عبداللطيف على | C134: 532 | D134: 209 | E134: 301 | F134: منقول | G134: مسلم | H134: مصرى | I134: 6 | K134: شيماء عبدالراضى عبداللطيف على
A135: 133 | B135: شيماء عبداللاه على احمد | C135: 533 | D135: 210 | E135: 302 | F135: منقول | G135: مسلم | H135: مصرى | I135: 6 | K135: شيماء عبداللاه على احمد
A136: 134 | B136: شيماء عرفات محمود عبدالمطلب | C136: 534 | D136: 211 | E136: 303 | F136: منقول | G136: مسلم | H136: مصرى | I136: 6 | K136: شيماء عرفات محمود عبدالمطلب
A137: 135 | B137: صباح محمود أحمد علي | C137: 535 | D137: 212 | E137: 304 | F137: باق | G137: مسلم | H137: مصرى | I137: 6 | K137: صباح محمود أحمد علي
A138: 136 | B138: صفاء حمام عابدين محمود | C138: 536 | D138: 213 | E138: 305 | F138: منقول | G138: مسلم | H138: مصرى | I138: 6 | K138: صفاء حمام عابدين محمود
A139: 137 | B139: صفاء حمدي فاروق إبراهيم | C139: 537 | D139: 214 | E139: 306 | F139: منقول | G139: مسلم | H139: مصرى | I139: 6 | K139: صفاء حمدي فاروق إبراهيم
A140: 138 | B140: ضحيه محمد احمد جادالكريم | C140: 538 | D140: 215 | E140: 307 | F140: منقول | G140: مسلم | H140: مصرى | I140: 6 | K140: ضحيه محمد احمد جادالكريم
A141: 139 | B141: عبير احمد نظير احمد | C141: 539 | D141: 216 | E141: 308 | F141: منقول | G141: مسلم | H141: مصرى | I141: 6 | K141: عبير احمد نظير احمد
A142: 140 | B142: علا محمد صابر حسين | C142: 540 | D142: 217 | E142: 309 | F142: منقول | G142: مسلم | H142: مصرى | I142: 7 | K142: علا محمد صابر حسين
A143: 141 | B143: غاده محمد حلمي السيد | C143: 541 | D143: 218 | E143: 310 | F143: منقول | G143: مسلم | H143: مصرى | I143: 7 | K143: غاده محمد حلمي السيد
A144: 142 | B144: فاطمه تمام عبداللطيف محمد | C144: 542 | D144: 219 | E144: 311 | F144: منقول | G144: مسلم | H144: مصرى | I144: 7 | K144: فاطمه تمام عبداللطيف محمد
A145: 143 | B145: فايزه أحمد محمد عثمان | C145: 543 | D145: 220 | E145: 312 | F145: منقول | G145: مسلم | H145: مصرى | I145: 7 | K145: فايزه أحمد محمد عثمان
A146: 144 | B146: كريمه صابر نورالدين رياض | C146: 544 | D146: 221 | E146: 313 | F146: منقول | G146: مسلم | H146: مصرى | I146: 7 | K146: كريمه صابر نورالدين رياض
A147: 145 | B147: كريمه مدنى عبدالحميد ابراهيم | C147: 545 | D147: 222 | E147: 314 | F147: منقول | G147: مسلم | H147: مصرى | I147: 7 | K147: كريمه مدنى عبدالحميد ابراهيم
A148: 146 | B148: كوثر محمد علي ابراهيم | C148: 546 | D148: 223 | E148: 315 | F148: منقول | G148: مسلم | H148: مصرى | I148: 7 | K148: كوثر محمد علي ابراهيم
A149: 147 | B149: لوسى عابدين عبدالنظير نورالدين | C149: 547 | D149: 224 | E149: 316 | F149: منقول | G149: مسلم | H149: مصرى | I149: 7 | K149: لوسى عابدين عبدالنظير نورالدين
A150: 148 | B150: مرثا سرجيوس صابر صادق | C150: 548 | D150: 225 | E150: 317 | F150: منقول | G150: مسيحي | H150: مصرى | I150: 7 | K150: مرثا سرجيوس صابر صادق
A151: 149 | B151: مروه اشرف احمد عجور | C151: 549 | D151: 226 | E151: 318 | F151: منقول | G151: مسلم | H151: مصرى | I151: 7 | K151: مروه اشرف احمد عجور
A152: 150 | B152: مروه شعبان عبدالعزيز محمد | C152: 550 | D152: 227 | E152: 319 | F152: منقول | G152: مسلم | H152: مصرى | I152: 7 | K152: مروه شعبان عبدالعزيز محمد
A153: 151 | B153: مروه محمد احمد على | C153: 551 | D153: 228 | E153: 320 | F153: منقول | G153: مسلم | H153: مصرى | I153: 7 | K153: مروه محمد احمد على
A154: 152 | B154: مريم محمود أحمد جادالكريم | C154: 552 | D154: 229 | E154: 321 | F154: منقول | G154: مسلم | H154: مصرى | I154: 7 | K154: مريم محمود أحمد جادالكريم
A155: 153 | B155: مريم محمود عبدالحميد عبدالنبى | C155: 553 | D155: 230 | E155: 322 | F155: منقول | G155: مسلم | H155: مصرى | I155: 7 | K155: مريم محمود عبدالحميد عبدالنبى
A156: 154 | B156: منار رفاعى على محمود | C156: 554 | D156: 231 | E156: 323 | F156: منقول | G156: مسلم | H156: مصرى | I156: 7 | K156: منار رفاعى على محمود
A157: 155 | B157: منار محمد طاهر بهلول | C157: 555 | D157: 232 | E157: 324 | F157: منقول | G157: مسلم | H157: مصرى | I157: 7 | K157: منار محمد طاهر بهلول
A158: 156 | B158: منة الله عمران جبريل محمد | C158: 556 | D158: 233 | E158: 325 | F158: منقول | G158: مسلم | H158: مصرى | I158: 7 | K158: منة الله عمران جبريل محمد
A159: 157 | B159: منة الله عوض محمود زيدان | C159: 557 | D159: 234 | E159: 326 | F159: منقول | G159: مسلم | H159: مصرى | I159: 7 | K159: منة الله عوض محمود زيدان
A160: 158 | B160: منه حماده على صادق | C160: 558 | D160: 235 | E160: 327 | F160: منقول | G160: مسلم | H160: مصرى | I160: 7 | K160: منه حماده على صادق
A161: 159 | B161: منى عزالعرب كليب صادق | C161: 559 | D161: 236 | E161: 328 | F161: منقول | G161: مسلم | H161: مصرى | I161: 7 | K161: منى عزالعرب كليب صادق
A162: 160 | B162: ناردين ماهر عبدالله جبرائيل | C162: 560 | D162: 237 | E162: 329 | F162: منقول | G162: مسيحي | H162: مصرى | I162: 7 | K162: ناردين ماهر عبدالله جبرائيل
A163: 161 | B163: نانسى خلف على صادق | C163: 561 | D163: 238 | E163: 330 | F163: منقول | G163: مسلم | H163: مصرى | I163: 7 | K163: نانسى خلف على صادق
A164: 162 | B164: نانسى فتحى عابدين عثمان | C164: 562 | D164: 239 | E164: 331 | F164: منقول | G164: مسلم | H164: مصرى | I164: 7 | K164: نانسى فتحى عابدين عثمان
A165: 163 | B165: نجلاء مشوادي أحمد ابراهيم | C165: 563 | D165: 240 | E165: 332 | F165: منقول | G165: مسلم | H165: مصرى | I165: 8 | K165: نجلاء مشوادي أحمد ابراهيم
A166: 164 | B166: نجوى على عثمان على | C166: 564 | D166: 241 | E166: 333 | F166: منقول | G166: مسلم | H166: مصرى | I166: 8 | K166: نجوى على عثمان على
A167: 165 | B167: ندى جابر احمد سليمان | C167: 565 | D167: 242 | E167: 334 | F167: منقول | G167: مسلم | H167: مصرى | I167: 8 | K167: ندى جابر احمد سليمان
A168: 166 | B168: نرهان السيد كامل نورالدين | C168: 566 | D168: 243 | E168: 335 | F168: منقول | G168: مسلم | H168: مصرى | I168: 8 | K168: نرهان السيد كامل نورالدين
A169: 167 | B169: نسلين كمال حسونة رضوان | C169: 567 | D169: 244 | E169: 336 | F169: باق | G169: مسلم | H169: مصرى | I169: 8 | K169: نسلين كمال حسونة رضوان
A170: 168 | B170: نسمه محمد عبدالرووف رضا | C170: 568 | D170: 245 | E170: 337 | F170: منقول | G170: مسلم | H170: مصرى | I170: 8 | K170: نسمه محمد عبدالرووف رضا
A171: 169 | B171: نورا أنور أسعد محمود | C171: 569 | D171: 246 | E171: 338 | F171: منقول | G171: مسلم | H171: مصرى | I171: 8 | K171: نورا أنور أسعد محمود
A172: 170 | B172: نورا محمد احمد علي | C172: 570 | D172: 247 | E172: 339 | F172: منقول | G172: مسلم | H172: مصرى | I172: 8 | K172: نورا محمد احمد علي
A173: 171 | B173: نوران فوزى محمد بهلول | C173: 571 | D173: 248 | E173: 340 | F173: منقول | G173: مسلم | H173: مصرى | I173: 8 | K173: نوران فوزى محمد بهلول
A174: 172 | B174: هايدى شحاته أحمد محمد | C174: 572 | D174: 249 | E174: 341 | F174: منقول | G174: مسلم | H174: مصرى | I174: 8 | K174: هايدى شحاته أحمد محمد
A175: 173 | B175: هايدى صبرى صدقى شنوده | C175: 573 | D175: 250 | E175: 342 | F175: منقول | G175: مسيحي | H175: مصرى | I175: 8 | K175: هايدى صبرى صدقى شنوده
A176: 174 | B176: هايدى محمد شاكر ابراهيم | C176: 574 | D176: 251 | E176: 343 | F176: منقول | G176: مسلم | H176: مصرى | I176: 8 | K176: هايدى محمد شاكر ابراهيم
A177: 175 | B177: هدى بسيونى الطيب عبدالعظيم | C177: 575 | D177: 252 | E177: 344 | F177: منقول | G177: مسلم | H177: مصرى | I177: 8 | K177: هدى بسيونى الطيب عبدالعظيم
A178: 176 | B178: هدى رفعت فاروق ابراهيم | C178: 576 | D178: 253 | E178: 345 | F178: منقول | G178: مسلم | H178: مصرى | I178: 8 | K178: هدى رفعت فاروق ابراهيم
A179: 177 | B179: هدى محمد علي ابراهيم | C179: 577 | D179: 254 | E179: 346 | F179: منقول | G179: مسلم | H179: مصرى | I179: 8 | K179: هدى محمد علي ابراهيم
A180: 178 | B180: ورده ياسر عبدالحميد جادالكريم | C180: 578 | D180: 255 | E180: 347 | F180: منقول | G180: مسلم | H180: مصرى | I180: 8 | K180: ورده ياسر عبدالحميد جادالكريم
A181: 179 | B181: وفاء عامر عبدالحميد حفنى | C181: 579 | D181: 256 | E181: 348 | F181: منقول | G181: مسلم | H181: مصرى | I181: 8 | K181: وفاء عامر عبدالحميد حفنى
A182: 180 | B182: ولاء احمد اسماعيل عبدالغفار | C182: 580 | D182: 257 | E182: 349 | F182: منقول | G182: مسلم | H182: مصرى | I182: 8 | K182: ولاء احمد اسماعيل عبدالغفار
A183: 181 | B183: ولاء حماد فهيم برعى | C183: 581 | D183: 258 | E183: 350 | F183: منقول | G183: مسلم | H183: مصرى | I183: 8 | K183: ولاء حماد فهيم برعى
A184: 182 | B184: ولاء كمال عيد ابوالعلاء | C184: 582 | D184: 259 | E184: 351 | F184: منقول | G184: مسلم | H184: مصرى | I184: 8 | K184: ولاء كمال عيد ابوالعلاء
A185: 183 | B185: ياسمين سالم فتحي مدني | C185: 583 | D185: 260 | E185: 352 | F185: منقول | G185: مسلم | H185: مصرى | I185: 8 | K185: ياسمين سالم فتحي مدني
A186: 184 | B186: محمد رفعت محمود محمد | C186: 584 | D186: 261 | E186: 353 | F186: منازل | G186: مسلم | H186: مصرى | I186: 8 | K186: محمد رفعت محمود محمد
A187: 185 | B187: محمد محمود عبدالمعبود جادالكريم | C187: 585 | D187: 262 | E187: 354 | F187: منازل | G187: مسلم | H187: مصرى | I187: 8 | K187: محمد محمود عبدالمعبود جادالكريم
K191: 185
K192: 2
K193: =K191/K192 -> 92.5
